{"text_format":"1","workbook":"xlsx","n_sheets":3,"sheets":["Reporting Info","Drop-Down Options","HUD Form 2516_Rev"],"not_rendered":{"charts":0,"images":0,"macros":0,"external_links":0,"defined_names":9,"comments":1,"pivot_tables":0},"unopened":[],"bounds":{"document_bytes":16777216,"sheet_cells":100000,"rows_first":2000,"rows_last":500,"rows_between":2000,"halvings":0,"cell_chars":16384,"cell_head_chars":4096},"cells_cut":0,"cells_raw":0,"read":"whole","date_system":"1900"}

{"sheet":"Reporting Info","index":0,"n_rows":276,"n_cols":30,"rows_kept":276,"cut":false,"hidden":false,"merged":[[158,0,173,0],[82,3,82,6],[82,8,82,10],[82,11,82,14],[82,15,82,16],[82,17,82,19],[82,20,82,21],[82,22,82,25],[83,3,83,6],[83,8,83,10],[83,11,83,14],[83,15,83,16],[83,17,83,19],[83,20,83,21],[83,22,83,25],[84,3,84,6],[84,8,84,10],[84,11,84,14],[84,15,84,16],[84,17,84,19],[84,20,84,21],[84,22,84,25],[79,3,79,6],[79,8,79,10],[79,11,79,14],[79,15,79,16],[79,17,79,19],[79,20,79,21],[79,22,79,25],[80,3,80,6],[80,8,80,10],[80,11,80,14],[80,15,80,16],[80,17,80,19],[80,20,80,21],[80,22,80,25],[81,3,81,6],[81,8,81,10],[81,11,81,14],[81,15,81,16],[81,17,81,19],[81,20,81,21],[81,22,81,25],[76,8,76,10],[76,11,76,14],[76,15,76,16],[76,17,76,19],[76,20,76,21],[76,22,76,25],[77,3,77,6],[77,8,77,10],[77,11,77,14],[77,15,77,16],[77,17,77,19],[77,20,77,21],[77,22,77,25],[78,3,78,6],[78,8,78,10],[78,11,78,14],[78,15,78,16],[78,17,78,19],[78,20,78,21],[78,22,78,25],[49,8,49,13],[49,14,49,16],[49,20,49,22],[49,23,49,25],[49,26,49,27],[74,3,74,6],[74,8,74,10],[74,11,74,14],[74,15,74,16],[74,17,74,19],[74,20,74,21],[74,22,74,25],[75,3,75,6],[75,8,75,10],[75,11,75,14],[75,15,75,16],[75,17,75,19],[75,20,75,21],[75,22,75,25],[46,8,46,13],[46,14,46,16],[46,20,46,22],[46,23,46,25],[46,26,46,27],[47,3,47,6],[47,8,47,13],[47,14,47,16],[47,20,47,22],[47,23,47,25],[47,26,47,27],[48,3,48,6],[48,8,48,13],[48,14,48,16],[48,20,48,22],[48,23,48,25],[48,26,48,27],[43,8,43,13],[43,14,43,16],[43,20,43,22],[43,23,43,25],[43,26,43,27],[44,3,44,6],[44,8,44,13],[44,14,44,16],[44,20,44,22],[44,23,44,25],[44,26,44,27],[45,3,45,6],[45,8,45,13],[45,14,45,16],[45,20,45,22],[45,23,45,25],[45,26,45,27],[40,8,40,13],[40,14,40,16],[40,20,40,22],[40,23,40,25],[40,26,40,27],[41,3,41,6],[41,8,41,13],[41,14,41,16],[41,20,41,22],[41,23,41,25],[41,26,41,27],[42,3,42,6],[42,8,42,13],[42,14,42,16],[42,20,42,22],[42,23,42,25],[42,26,42,27],[249,5,250,19],[224,10,224,13],[225,10,225,13],[226,10,226,13],[227,10,227,13],[228,10,228,13],[229,10,229,13],[230,10,230,13],[2,0,2,16],[168,3,168,6],[164,7,164,9],[164,10,164,13],[164,17,164,19],[130,15,130,18],[129,13,129,14],[130,13,130,14],[120,3,120,6],[128,15,128,18],[129,15,129,18],[166,10,166,13],[166,17,166,19],[170,10,170,13],[171,10,171,13],[172,10,172,13],[173,10,173,13],[223,10,223,13],[115,3,115,6],[116,3,116,6],[117,3,117,6],[118,3,118,6],[119,3,119,6],[98,8,98,10],[226,17,226,19],[248,5,248,19],[247,5,247,19],[250,22,250,29],[249,22,249,29],[248,22,248,29],[247,22,247,29],[146,8,146,13],[146,14,146,16],[146,20,146,22],[146,23,146,25],[146,26,146,27],[147,3,147,6],[147,8,147,13],[147,14,147,16],[147,20,147,22],[164,21,164,25],[165,7,165,9],[165,10,165,13],[165,17,165,19],[165,21,165,25],[166,7,166,9],[232,10,232,16],[233,10,233,16],[234,10,234,16],[231,10,231,17],[164,3,164,6],[165,3,165,6],[166,3,166,6],[167,3,167,6],[166,21,166,25],[167,7,167,9],[168,7,168,9],[168,10,168,13],[168,17,168,19],[168,21,168,25],[200,24,200,26],[199,24,199,26],[202,24,202,26],[4,18,4,26],[159,7,159,9],[160,7,160,9],[161,7,161,9],[162,7,162,9],[163,7,163,9],[169,7,169,9],[171,21,171,25],[172,21,172,25],[173,21,173,25],[156,21,156,25],[156,10,156,13],[157,10,157,13],[158,10,158,13],[159,10,159,13],[160,10,160,13],[161,10,161,13],[162,10,162,13],[163,10,163,13],[169,10,169,13],[161,21,161,25],[162,21,162,25],[39,8,39,13],[39,14,39,16],[39,20,39,22],[136,0,153,0],[98,15,98,18],[99,15,99,18],[100,15,100,18],[101,15,101,18],[102,15,102,18],[103,15,103,18],[104,15,104,18],[105,15,105,18],[106,15,106,18],[107,15,107,18],[108,15,108,18],[109,15,109,18],[110,15,110,18],[111,15,111,18],[112,15,112,18],[113,15,113,18],[114,15,114,18],[115,15,115,18],[116,15,116,18],[126,13,126,14],[127,13,127,14],[104,8,104,10],[105,8,105,10],[141,14,141,16],[142,14,142,16],[148,14,148,16],[149,14,149,16],[150,14,150,16],[101,0,130,0],[151,14,151,16],[152,14,152,16],[163,21,163,25],[169,21,169,25],[170,21,170,25],[128,13,128,14],[128,20,128,21],[129,20,129,21],[130,20,130,21],[140,8,140,13],[141,8,141,13],[142,8,142,13],[148,8,148,13],[128,22,128,24],[129,22,129,24],[130,22,130,24],[129,8,129,10],[130,8,130,10],[143,8,143,13],[144,8,144,13],[150,20,150,22],[151,20,151,22],[157,21,157,25],[158,21,158,25],[159,21,159,25],[160,21,160,25],[149,23,149,25],[150,23,150,25],[152,23,152,25],[167,10,167,13],[167,17,167,19],[167,21,167,25],[149,26,149,27],[150,26,150,27],[151,26,151,27],[152,26,152,27],[135,23,135,25],[136,23,136,25],[137,23,137,25],[138,23,138,25],[139,23,139,25],[140,23,140,25],[156,14,156,16],[156,17,156,19],[157,17,157,19],[158,17,158,19],[159,17,159,19],[160,17,160,19],[161,17,161,19],[139,20,139,22],[140,20,140,22],[141,20,141,22],[135,14,135,16],[139,14,139,16],[140,14,140,16],[137,14,137,16],[138,14,138,16],[138,20,138,22],[136,14,136,16],[143,14,143,16],[143,20,143,22],[143,23,143,25],[144,14,144,16],[144,20,144,22],[148,26,148,27],[141,23,141,25],[142,23,142,25],[148,23,148,25],[135,26,135,27],[136,26,136,27],[137,26,137,27],[138,26,138,27],[139,26,139,27],[128,25,128,26],[129,25,129,26],[130,25,130,26],[145,26,145,27],[147,23,147,25],[147,26,147,27],[148,20,148,22],[140,26,140,27],[141,26,141,27],[142,26,142,27],[143,26,143,27],[137,20,137,22],[106,20,106,21],[107,20,107,21],[108,20,108,21],[109,20,109,21],[110,20,110,21],[126,25,126,26],[112,25,112,26],[113,25,113,26],[114,25,114,26],[116,22,116,24],[144,26,144,27],[127,22,127,24],[142,20,142,22],[127,25,127,26],[144,23,144,25],[145,8,145,13],[145,14,145,16],[145,20,145,22],[145,23,145,25],[112,8,112,10],[113,8,113,10],[114,8,114,10],[115,8,115,10],[116,8,116,10],[117,8,117,10],[118,8,118,10],[119,8,119,10],[120,8,120,10],[113,22,113,24],[114,22,114,24],[125,25,125,26],[106,25,106,26],[101,8,101,10],[102,8,102,10],[93,17,93,19],[94,17,94,19],[95,17,95,19],[106,8,106,10],[107,8,107,10],[117,25,117,26],[118,22,118,24],[121,20,121,21],[122,20,122,21],[123,20,123,21],[124,20,124,21],[125,20,125,21],[122,22,122,24],[123,22,123,24],[124,22,124,24],[125,22,125,24],[100,8,100,10],[99,20,99,21],[100,20,100,21],[108,8,108,10],[109,8,109,10],[115,25,115,26],[116,25,116,26],[103,8,103,10],[121,15,121,18],[123,13,123,14],[124,13,124,14],[125,13,125,14],[103,22,103,24],[117,20,117,21],[95,20,95,21],[89,11,89,14],[90,11,90,14],[73,17,73,19],[94,22,94,25],[95,22,95,25],[65,20,65,21],[66,20,66,21],[67,20,67,21],[68,20,68,21],[86,22,86,25],[92,22,92,25],[93,22,93,25],[92,11,92,14],[57,14,57,16],[57,23,57,25],[67,17,67,19],[68,17,68,19],[85,8,85,10],[86,8,86,10],[87,8,87,10],[88,8,88,10],[89,8,89,10],[90,8,90,10],[91,8,91,10],[92,8,92,10],[93,8,93,10],[91,11,91,14],[91,20,91,21],[95,11,95,14],[88,15,88,16],[89,15,89,16],[90,15,90,16],[91,15,91,16],[92,15,92,16],[93,15,93,16],[85,20,85,21],[86,20,86,21],[87,20,87,21],[88,20,88,21],[89,20,89,21],[90,20,90,21],[94,15,94,16],[95,15,95,16],[92,20,92,21],[93,20,93,21],[90,17,90,19],[94,20,94,21],[38,14,38,16],[50,14,50,16],[51,14,51,16],[52,14,52,16],[53,14,53,16],[27,20,27,22],[27,23,27,25],[28,23,28,25],[29,23,29,25],[30,23,30,25],[31,23,31,25],[32,23,32,25],[33,23,33,25],[34,23,34,25],[35,23,35,25],[55,23,55,25],[54,23,54,25],[54,20,54,22],[27,14,27,16],[28,14,28,16],[55,14,55,16],[54,14,54,16],[39,23,39,25],[36,23,36,25],[37,23,37,25],[38,23,38,25],[50,23,50,25],[51,23,51,25],[52,23,52,25],[53,23,53,25],[52,26,52,27],[53,26,53,27],[54,26,54,27],[55,26,55,27],[38,20,38,22],[50,20,50,22],[51,20,51,22],[52,20,52,22],[53,20,53,22],[55,20,55,22],[39,26,39,27],[273,1,274,2],[179,16,181,18],[182,16,182,18],[183,16,183,18],[184,16,184,18],[185,16,185,18],[186,16,186,18],[187,16,187,18],[188,16,188,18],[189,16,189,18],[190,16,190,18],[191,16,191,18],[192,16,192,18],[193,16,193,18],[58,23,58,25],[27,26,27,27],[28,26,28,27],[259,24,259,29],[59,23,59,25],[260,24,260,29],[270,24,270,29],[29,26,29,27],[30,26,30,27],[31,26,31,27],[32,26,32,27],[33,26,33,27],[34,26,34,27],[35,26,35,27],[36,26,36,27],[37,26,37,27],[38,26,38,27],[229,24,229,26],[230,24,230,26],[231,24,231,26],[223,20,223,21],[224,20,224,21],[225,20,225,21],[226,20,226,21],[227,20,227,21],[229,20,229,21],[230,20,230,21],[231,20,231,21],[4,27,4,29],[6,26,6,29],[8,26,8,29],[14,26,15,29],[17,26,18,29],[20,26,21,29],[23,26,24,29],[50,26,50,27],[28,20,28,22],[29,20,29,22],[30,20,30,22],[31,20,31,22],[32,20,32,22],[33,20,33,22],[34,20,34,22],[35,20,35,22],[69,20,69,21],[70,20,70,21],[71,20,71,21],[72,20,72,21],[73,20,73,21],[211,24,211,26],[212,24,212,26],[213,24,213,26],[214,24,214,26],[217,24,217,26],[218,20,218,21],[219,20,219,21],[215,17,215,19],[216,17,216,19],[210,17,210,19],[216,20,216,21],[271,24,271,29],[218,29,224,29],[218,23,241,23],[232,24,232,26],[236,24,236,26],[237,24,237,26],[238,24,238,26],[239,24,239,26],[240,24,240,26],[241,24,241,26],[233,24,233,26],[234,24,234,26],[235,24,235,26],[222,20,222,21],[222,17,222,19],[218,24,224,26],[218,27,224,27],[218,28,224,28],[226,24,226,26],[227,24,227,26],[228,24,228,26],[221,17,221,19],[223,17,223,19],[224,17,224,19],[225,17,225,19],[220,20,220,21],[221,20,221,21],[217,20,217,21],[199,20,199,21],[200,20,200,21],[203,20,203,21],[204,20,204,21],[205,20,205,21],[206,20,206,21],[207,20,207,21],[208,20,208,21],[209,20,209,21],[210,20,210,21],[211,20,211,21],[212,20,212,21],[213,20,213,21],[214,20,214,21],[215,20,215,21],[201,20,201,21],[202,20,202,21],[223,14,223,16],[226,14,226,16],[227,14,227,16],[229,14,229,16],[230,14,230,16],[224,14,224,16],[225,14,225,16],[208,14,208,16],[209,14,209,16],[199,17,199,19],[200,17,200,19],[201,17,201,19],[202,17,202,19],[203,17,203,19],[204,17,204,19],[205,17,205,19],[206,17,206,19],[207,17,207,19],[211,17,211,19],[212,17,212,19],[208,17,208,19],[209,17,209,19],[213,17,213,19],[214,17,214,19],[218,14,218,16],[219,14,219,16],[220,14,220,16],[221,14,221,16],[211,14,211,16],[227,17,227,19],[229,17,229,19],[230,17,230,19],[222,14,222,16],[222,10,222,13],[201,10,201,13],[202,10,202,13],[203,10,203,13],[204,10,204,13],[205,10,205,13],[206,10,206,13],[207,10,207,13],[208,10,208,13],[209,10,209,13],[210,10,210,13],[211,10,211,13],[212,10,212,13],[213,10,213,13],[214,10,214,13],[215,10,215,13],[216,10,216,13],[217,14,217,16],[212,14,212,16],[213,14,213,16],[214,14,214,16],[215,14,215,16],[216,14,216,16],[221,10,221,13],[183,23,183,26],[183,27,183,28],[184,23,184,26],[184,27,184,28],[185,23,185,26],[185,27,185,28],[186,23,186,26],[186,27,186,28],[185,11,185,15],[186,11,186,15],[210,3,210,6],[202,14,202,16],[203,14,203,16],[204,14,204,16],[205,14,205,16],[206,14,206,16],[207,14,207,16],[210,14,210,16],[203,24,203,26],[204,24,204,26],[205,24,205,26],[206,24,206,26],[207,24,207,26],[208,24,208,26],[209,24,209,26],[210,24,210,26],[200,0,220,0],[199,10,199,13],[200,10,200,13],[217,10,217,13],[218,10,218,13],[219,10,219,13],[220,10,220,13],[189,23,189,26],[189,27,189,28],[190,23,190,26],[190,27,190,28],[191,23,191,26],[191,27,191,28],[188,19,188,22],[189,19,189,22],[190,19,190,22],[191,19,191,22],[192,19,192,22],[192,1,192,2],[212,3,212,6],[213,3,213,6],[214,3,214,6],[215,3,215,6],[216,3,216,6],[217,3,217,6],[218,3,218,6],[219,3,219,6],[220,3,220,6],[217,17,217,19],[218,17,218,19],[219,17,219,19],[220,17,220,19],[65,8,65,10],[66,8,66,10],[67,8,67,10],[68,8,68,10],[69,8,69,10],[70,8,70,10],[71,8,71,10],[72,8,72,10],[211,3,211,6],[158,7,158,9],[112,3,112,6],[172,3,172,6],[152,8,152,13],[205,3,205,6],[206,3,206,6],[209,3,209,6],[157,7,157,9],[93,11,93,14],[94,11,94,14],[94,8,94,10],[95,8,95,10],[98,11,98,14],[187,11,187,15],[188,11,188,15],[189,11,189,15],[190,11,190,15],[191,11,191,15],[192,11,192,15],[156,7,156,9],[136,3,136,6],[137,3,137,6],[221,3,221,6],[99,8,99,10],[178,27,178,28],[178,23,178,26],[178,16,178,17],[178,11,178,15],[179,29,181,29],[179,27,181,28],[179,23,181,26],[179,11,181,15],[178,1,180,7],[199,3,199,6],[200,3,200,6],[201,3,201,6],[202,3,202,6],[203,3,203,6],[204,3,204,6],[181,1,181,2],[191,3,191,6],[192,3,192,6],[184,3,184,6],[185,3,185,6],[186,3,186,6],[187,3,187,6],[188,3,188,6],[189,3,189,6],[190,3,190,6],[184,11,184,15],[187,23,187,26],[187,27,187,28],[188,23,188,26],[188,27,188,28],[182,23,182,26],[182,27,182,28],[29,0,60,0],[162,17,162,19],[163,17,163,19],[169,17,169,19],[170,17,170,19],[171,17,171,19],[172,17,172,19],[173,17,173,19],[182,3,182,6],[183,3,183,6],[181,3,181,6],[182,11,182,15],[183,11,183,15],[170,7,170,9],[171,7,171,9],[172,7,172,9],[173,7,173,9],[110,8,110,10],[111,8,111,10],[128,8,128,10],[65,0,95,0],[29,14,29,16],[30,14,30,16],[31,14,31,16],[32,14,32,16],[33,14,33,16],[34,14,34,16],[35,14,35,16],[36,14,36,16],[37,14,37,16],[138,3,138,6],[139,3,139,6],[140,3,140,6],[141,3,141,6],[142,3,142,6],[148,3,148,6],[137,8,137,13],[138,8,138,13],[139,8,139,13],[117,22,117,24],[135,8,135,13],[136,8,136,13],[149,8,149,13],[150,8,150,13],[151,8,151,13],[126,22,126,24],[120,22,120,24],[121,22,121,24],[121,8,121,10],[122,8,122,10],[123,8,123,10],[124,8,124,10],[125,8,125,10],[126,8,126,10],[127,8,127,10],[135,20,135,22],[136,20,136,22],[126,20,126,21],[127,20,127,21],[151,23,151,25],[120,20,120,21],[135,17,135,19],[118,20,118,21],[119,25,119,26],[120,25,120,26],[121,25,121,26],[122,25,122,26],[123,25,123,26],[124,25,124,26],[103,25,103,26],[122,15,122,18],[123,15,123,18],[124,15,124,18],[125,15,125,18],[126,15,126,18],[127,15,127,18],[110,13,110,14],[111,13,111,14],[112,13,112,14],[113,13,113,14],[116,20,116,21],[119,22,119,24],[115,22,115,24],[111,20,111,21],[112,20,112,21],[108,25,108,26],[109,25,109,26],[110,25,110,26],[111,25,111,26],[104,25,104,26],[105,25,105,26],[104,20,104,21],[105,20,105,21],[114,13,114,14],[102,20,102,21],[98,20,98,21],[118,25,118,26],[98,22,98,24],[99,22,99,24],[99,25,99,26],[100,25,100,26],[101,25,101,26],[102,25,102,26],[62,11,62,16],[66,17,66,19],[64,17,64,19],[65,17,65,19],[67,22,67,25],[68,22,68,25],[69,22,69,25],[113,20,113,21],[114,20,114,21],[115,20,115,21],[104,22,104,24],[105,22,105,24],[106,22,106,24],[107,22,107,24],[108,22,108,24],[109,22,109,24],[110,22,110,24],[111,22,111,24],[112,22,112,24],[69,11,69,14],[70,11,70,14],[86,11,86,14],[115,13,115,14],[116,13,116,14],[99,13,99,14],[100,13,100,14],[101,13,101,14],[102,13,102,14],[103,13,103,14],[104,13,104,14],[105,13,105,14],[106,13,106,14],[107,13,107,14],[100,22,100,24],[101,22,101,24],[103,20,103,21],[107,25,107,26],[71,11,71,14],[72,11,72,14],[73,11,73,14],[85,11,85,14],[87,22,87,25],[88,22,88,25],[89,22,89,25],[101,20,101,21],[109,13,109,14],[98,25,98,26],[102,22,102,24],[87,17,87,19],[88,17,88,19],[89,17,89,19],[91,17,91,19],[92,17,92,19],[91,22,91,25],[87,15,87,16],[70,22,70,25],[71,22,71,25],[85,17,85,19],[86,17,86,19],[65,22,65,25],[66,22,66,25],[56,20,56,22],[57,20,57,22],[59,20,59,22],[62,22,62,26],[63,22,63,26],[64,22,64,25],[62,17,62,21],[63,17,63,21],[64,20,64,21],[58,20,58,22],[57,26,57,27],[58,26,58,27],[59,26,59,27],[56,23,56,25],[72,22,72,25],[73,22,73,25],[85,22,85,25],[56,14,56,16],[56,26,56,27],[92,3,92,6],[93,3,93,6],[94,3,94,6],[95,3,95,6],[36,3,36,6],[37,3,37,6],[38,3,38,6],[50,3,50,6],[89,3,89,6],[90,3,90,6],[91,3,91,6],[51,3,51,6],[52,3,52,6],[53,3,53,6],[54,3,54,6],[55,3,55,6],[69,3,69,6],[70,3,70,6],[71,3,71,6],[72,3,72,6],[73,3,73,6]],"merged_total":1229,"flags":["merged_cut"]}
[null,"SEMI-ANNUAL DATA REPORT (MBE/WBE, Labor Standards Enforcement, and Section 3) (9-C)"]
[]
["Click on the red triagles in the upper right corner of cells throughout the electronic version of this form to view instructional/guidance notes."]
[]
["Grantee/UGLG Name:",null,"(Grantee's Name)",null,null,null,null,"Grant AWARDED On or After 11/30/2020:",null,null,null,null,null,null,null,null,"On or After",null,"DEHCR Grant Agreement/Contract Number:",null,null,null,null,null,null,null,null,"(Grant Agreement #)"]
[]
[null,"Reporting Period (Choose ONE):",null,null,"X",null,null,null,"Year",null,null,null,null,null,null,null,null,null,null,null,"Approver's Name:"]
[null,null,null,null,null,null,"October 1 - March 31"]
[null,null,null,null,null,null,null,null,null,null,null,null,null,null,null,null,null,null,null,null,"Approver's Title: "]
[]
[null,null,null,null,null,null,"April 1 - September 30"]
[null,null,null,null,null,null,null,null,null,null,null,"If the \"Approver\" is not the one submitting this Report to DEHCR, then they MUST BE CARBON-COPIED on the email submission."]
[]
[]
[null,"PART 1.  CONSTRUCTION PERIOD",null,null,null,null,null,null,null,null,null,null,null,null,null,null,null,null,null,null,"Preparer's Name:"]
[null,null,null,null,null,null,null,null,"Trade Codes:",null,null,null,null,null,"Racial / Ethnic Codes:"]
[null,null,null,null,null,null,null,null,"1 = New Construction",null,null,null,null,null,"1 = White Americans"]
[null,"1(a).  Construction Start Date:",null,null,null,null,null,null,"2 = Substantial Rehab",null,null,null,null,null,"2 = Black Americans",null,null,null,null,null,"Preparer's Title:"]
[null,null,null,null,null,null,null,null,"3 = Repair(s)",null,null,null,null,null,"3 = Native Americans"]
[null,"1(b).  Construction End Date: ",null,null,null,null,null,null,"4 = Service",null,null,null,null,null,"4 = Hispanic Americans"]
[null,null,null,null,null,null,null,null,"5 = Project Management",null,null,null,null,null,"5 = Asian / Pacific Americans",null,null,null,null,null,"Preparer's Phone No.:"]
[null,null,null,null,null,null,null,null,"6 = Professional Services",null,null,null,null,null,"6 = Hasidic Jews"]
[null,"PART 2.  CONSTRUCTION CONTRACTS AWARDED",null,null,null,null,null,null,"7 = Tenant Services"]
[null,null,null,null,null,null,null,null,"8 = Education / Training",null,null,null,null,null,null,null,null,null,null,null,"Preparer's Email:"]
[null,null,null,null,null,null,null,null,"9 = Architectural / Engineering Appraisal"]
[null,null,null,null,null,null,null,null,"0 = Other"]
[]
[null,null,"2(a)","2(b)",null,null,null,"2(c) ","2(d)",null,null,null,null,null,"2(e) ",null,null,"2(f)",null,null,"2(g)",null,null,"2(h)",null,null,"2(i)",null,"2(j)","2(k)"]
[null,null,"Construction Prime Contractor Name","Total Awarded Contract Amount (Applicable Project Activities Only)",null,null,null,"Prime Contract Amt. MINUS Associated Subcontractor Amt(s)","Street Address",null,null,null,null,null,"City",null,null,"State","/","ZIP","Prime's FEIN #                ( XX - XXXXXXX )",null,null,"Trade Code                           (See above.)",null,null,"Prime's Race/ Ethnicity                       (See above.)",null,"Women Owned Business? (Yes or No)","Section 3 Business? (Yes or No)"]
["***** Information for   CONSTRUCTION PRIME   Contractors *****","Example","Builders-R-Us Inc.",2500000,null,null,null,400000,"123 Main Street",null,null,null,null,null,"Centerville",null,null,"WI","/",58724,"88 - 5423726",null,null,2,null,null,3,null,"Yes","Yes"]
[null,"Prime Contractor #1",null,0,null,null,null,0,null,null,null,null,null,null,null,null,null,null,"/",null,null,null,null,"Not Answered",null,null,"Not Answered",null,"Not Answered","Not Answered"]
[null,"Prime Contractor #2",null,0,null,null,null,0,null,null,null,null,null,null,null,null,null,null,"/",null,null,null,null,"Not Answered",null,null,"Not Answered",null,"Not Answered","Not Answered"]
[null,"Prime Contractor #3",null,0,null,null,null,0,null,null,null,null,null,null,null,null,null,null,"/",null,null,null,null,"Not Answered",null,null,"Not Answered",null,"Not Answered","Not Answered"]
[null,"Prime Contractor #4",null,0,null,null,null,0,null,null,null,null,null,null,null,null,null,null,"/",null,null,null,null,"Not Answered",null,null,"Not Answered",null,"Not Answered","Not Answered"]
[null,"Prime Contractor #5",null,0,null,null,null,0,null,null,null,null,null,null,null,null,null,null,"/",null,null,null,null,"Not Answered",null,null,"Not Answered",null,"Not Answered","Not Answered"]
[null,"Prime Contractor #6",null,0,null,null,null,0,null,null,null,null,null,null,null,null,null,null,"/",null,null,null,null,"Not Answered",null,null,"Not Answered",null,"Not Answered","Not Answered"]
[null,"Prime Contractor #7",null,0,null,null,null,0,null,null,null,null,null,null,null,null,null,null,"/",null,null,null,null,"Not Answered",null,null,"Not Answered",null,"Not Answered","Not Answered"]
[null,"Prime Contractor #8",null,0,null,null,null,0,null,null,null,null,null,null,null,null,null,null,"/",null,null,null,null,"Not Answered",null,null,"Not Answered",null,"Not Answered","Not Answered"]
[null,"Prime Contractor #9",null,0,null,null,null,0,null,null,null,null,null,null,null,null,null,null,"/",null,null,null,null,"Not Answered",null,null,"Not Answered",null,"Not Answered","Not Answered"]
[null,"Prime Contractor #10",null,0,null,null,null,0,null,null,null,null,null,null,null,null,null,null,"/",null,null,null,null,"Not Answered",null,null,"Not Answered",null,"Not Answered","Not Answered"]
[null,"Prime Contractor #11",null,0,null,null,null,0,null,null,null,null,null,null,null,null,null,null,"/",null,null,null,null,"Not Answered",null,null,"Not Answered",null,"Not Answered","Not Answered"]
[null,"Prime Contractor #12",null,0,null,null,null,0,null,null,null,null,null,null,null,null,null,null,"/",null,null,null,null,"Not Answered",null,null,"Not Answered",null,"Not Answered","Not Answered"]
[null,"Prime Contractor #13",null,0,null,null,null,0,null,null,null,null,null,null,null,null,null,null,"/",null,null,null,null,"Not Answered",null,null,"Not Answered",null,"Not Answered","Not Answered"]
[null,"Prime Contractor #14",null,0,null,null,null,0,null,null,null,null,null,null,null,null,null,null,"/",null,null,null,null,"Not Answered",null,null,"Not Answered",null,"Not Answered","Not Answered"]
[null,"Prime Contractor #15",null,0,null,null,null,0,null,null,null,null,null,null,null,null,null,null,"/",null,null,null,null,"Not Answered",null,null,"Not Answered",null,"Not Answered","Not Answered"]
[null,"Prime Contractor #16",null,0,null,null,null,0,null,null,null,null,null,null,null,null,null,null,"/",null,null,null,null,"Not Answered",null,null,"Not Answered",null,"Not Answered","Not Answered"]
[null,"Prime Contractor #17",null,0,null,null,null,0,null,null,null,null,null,null,null,null,null,null,"/",null,null,null,null,"Not Answered",null,null,"Not Answered",null,"Not Answered","Not Answered"]
[null,"Prime Contractor #18",null,0,null,null,null,0,null,null,null,null,null,null,null,null,null,null,"/",null,null,null,null,"Not Answered",null,null,"Not Answered",null,"Not Answered","Not Answered"]
[null,"Prime Contractor #19",null,0,null,null,null,0,null,null,null,null,null,null,null,null,null,null,"/",null,null,null,null,"Not Answered",null,null,"Not Answered",null,"Not Answered","Not Answered"]
[null,"Prime Contractor #20",null,0,null,null,null,0,null,null,null,null,null,null,null,null,null,null,"/",null,null,null,null,"Not Answered",null,null,"Not Answered",null,"Not Answered","Not Answered"]
[null,"Prime Contractor #21",null,0,null,null,null,0,null,null,null,null,null,null,null,null,null,null,"/",null,null,null,null,"Not Answered",null,null,"Not Answered",null,"Not Answered","Not Answered"]
[null,"Prime Contractor #22",null,0,null,null,null,0,null,null,null,null,null,null,null,null,null,null,"/",null,null,null,null,"Not Answered",null,null,"Not Answered",null,"Not Answered","Not Answered"]
[null,"Prime Contractor #23",null,0,null,null,null,0,null,null,null,null,null,null,null,null,null,null,"/",null,null,null,null,"Not Answered",null,null,"Not Answered",null,"Not Answered","Not Answered"]
[null,"Prime Contractor #24",null,0,null,null,null,0,null,null,null,null,null,null,null,null,null,null,"/",null,null,null,null,"Not Answered",null,null,"Not Answered",null,"Not Answered","Not Answered"]
[null,"Prime Contractor #25",null,0,null,null,null,0,null,null,null,null,null,null,null,null,null,null,"/",null,null,null,null,"Not Answered",null,null,"Not Answered",null,"Not Answered","Not Answered"]
[null,"Prime Contractor #26",null,0,null,null,null,0,null,null,null,null,null,null,null,null,null,null,"/",null,null,null,null,"Not Answered",null,null,"Not Answered",null,"Not Answered","Not Answered"]
[null,"Prime Contractor #27",null,0,null,null,null,0,null,null,null,null,null,null,null,null,null,null,"/",null,null,null,null,"Not Answered",null,null,"Not Answered",null,"Not Answered","Not Answered"]
[null,"Prime Contractor #28",null,0,null,null,null,0,null,null,null,null,null,null,null,null,null,null,"/",null,null,null,null,"Not Answered",null,null,"Not Answered",null,"Not Answered","Not Answered"]
[null,"Prime Contractor #29",null,0,null,null,null,0,null,null,null,null,null,null,null,null,null,null,"/",null,null,null,null,"Not Answered",null,null,"Not Answered",null,"Not Answered","Not Answered"]
[null,"Prime Contractor #30",null,0,null,null,null,0,null,null,null,null,null,null,null,null,null,null,"/",null,null,null,null,"Not Answered",null,null,"Not Answered",null,"Not Answered","Not Answered"]
[null,"Total Construction Prime Contract Amounts:",null,{"$f":"SUM(D31:D60)","v":0},null,null,null,{"$f":"SUM(H31:H60)","v":0}]
[]
[null,null,"2(a)","2(l)",null,null,null,"2(m)-1 ",null,null,null,"2(m)-2",null,null,null,null,null,"2(m)-3",null,null,null,null,"2(m)-4",null,null,null,null,"2(n)-1","2(n)-2","2(o)"]
[null,null,"Construction Prime Contractor Name","Contract Award Date                             (mm/dd/yyyy)",null,null,null,"Wage Decision #1",null,null,null,"Wage Decision #2",null,null,null,null,null,"Wage Decision #3",null,null,null,null,"Wage Decision #4",null,null,null,null,"Bid Opening Date","Wage Decision      Lock-In Date:  "," Construction Start Date"]
[null,null,null,null,null,null,null,"(WI##00##   Mod. ##)","(mm/dd/yyyy)",null,null,"(WI##00##   Mod. ##)",null,null,null,"(mm/dd/yyyy)",null,"(WI##00##   Mod. ##)",null,null,"(mm/dd/yyyy)",null,"(WI##00##   Mod. ##)",null,null,null,"(mm/dd/yyyy)","(mm/dd/yyyy)","(mm/dd/yyyy)","(mm/dd/yyyy)"]
["***** Information for   CONSTRUCTION PRIME   Contractors *****","Example",{"$f":"C30","v":"Builders-R-Us Inc."},"2019-08-27",null,null,null,"WI 20190012, Mod. 10","2019-07-06",null,null,"WI 20190015, Mod. 10",null,null,null,"2019-07-20",null,"WI 20190010, Mod. 10",null,null,"7/13/20219",null,"WI 20190008, Mod. 10",null,null,null,"2019-07-13","2019-08-07",{"$f":"IF((D66-AB66)>90,D66,AB66)","v":"2019-08-07"},"2029-10-07"]
[null,"Prime Contractor #1",{"$f":"C31","v":0},null,null,null,null,null,null,null,null,null,null,null,null,null,null,null,null,null,null,null,null,null,null,null,null,null,{"$f":"IF((D67-AB67)>90,D67,AB67)","v":"00:00:00"}]
[null,"Prime Contractor #2",{"$f":"C32","v":0},null,null,null,null,null,null,null,null,null,null,null,null,null,null,null,null,null,null,null,null,null,null,null,null,null,{"$f":"IF((D68-AB68)>90,D68,AB68)","v":"00:00:00"}]
[null,"Prime Contractor #3",{"$f":"C33","v":0},null,null,null,null,null,null,null,null,null,null,null,null,null,null,null,null,null,null,null,null,null,null,null,null,null,"00:00:00"]
[null,"Prime Contractor #4",{"$f":"C34","v":0},null,null,null,null,null,null,null,null,null,null,null,null,null,null,null,null,null,null,null,null,null,null,null,null,null,"00:00:00"]
[null,"Prime Contractor #5",{"$f":"C35","v":0},null,null,null,null,null,null,null,null,null,null,null,null,null,null,null,null,null,null,null,null,null,null,null,null,null,"00:00:00"]
[null,"Prime Contractor #6",{"$f":"C36","v":0},null,null,null,null,null,null,null,null,null,null,null,null,null,null,null,null,null,null,null,null,null,null,null,null,null,"00:00:00"]
[null,"Prime Contractor #7",{"$f":"C37","v":0},null,null,null,null,null,null,null,null,null,null,null,null,null,null,null,null,null,null,null,null,null,null,null,null,null,"00:00:00"]
[null,"Prime Contractor #8",{"$f":"C38","v":0},null,null,null,null,null,null,null,null,null,null,null,null,null,null,null,null,null,null,null,null,null,null,null,null,null,"00:00:00"]
[null,"Prime Contractor #9",{"$f":"C39","v":0},null,null,null,null,null,null,null,null,null,null,null,null,null,null,null,null,null,null,null,null,null,null,null,null,null,{"$f":"IF((D75-AB75)>90,D75,AB75)","v":"00:00:00"}]
[null,"Prime Contractor #10",0,null,null,null,null,null,null,null,null,null,null,null,null,null,null,null,null,null,null,null,null,null,null,null,null,null,"00:00:00"]
[null,"Prime Contractor #11",0,null,null,null,null,null,null,null,null,null,null,null,null,null,null,null,null,null,null,null,null,null,null,null,null,null,"00:00:00"]
[null,"Prime Contractor #12",0,null,null,null,null,null,null,null,null,null,null,null,null,null,null,null,null,null,null,null,null,null,null,null,null,null,"00:00:00"]
[null,"Prime Contractor #13",0,null,null,null,null,null,null,null,null,null,null,null,null,null,null,null,null,null,null,null,null,null,null,null,null,null,"00:00:00"]
[null,"Prime Contractor #14",0,null,null,null,null,null,null,null,null,null,null,null,null,null,null,null,null,null,null,null,null,null,null,null,null,null,"00:00:00"]
[null,"Prime Contractor #15",0,null,null,null,null,null,null,null,null,null,null,null,null,null,null,null,null,null,null,null,null,null,null,null,null,null,"00:00:00"]
[null,"Prime Contractor #16",0,null,null,null,null,null,null,null,null,null,null,null,null,null,null,null,null,null,null,null,null,null,null,null,null,null,"00:00:00"]
[null,"Prime Contractor #17",0,null,null,null,null,null,null,null,null,null,null,null,null,null,null,null,null,null,null,null,null,null,null,null,null,null,"00:00:00"]
[null,"Prime Contractor #18",0,null,null,null,null,null,null,null,null,null,null,null,null,null,null,null,null,null,null,null,null,null,null,null,null,null,"00:00:00"]
[null,"Prime Contractor #19",0,null,null,null,null,null,null,null,null,null,null,null,null,null,null,null,null,null,null,null,null,null,null,null,null,null,"00:00:00"]
[null,"Prime Contractor #20",0,null,null,null,null,null,null,null,null,null,null,null,null,null,null,null,null,null,null,null,null,null,null,null,null,null,"00:00:00"]
[null,"Prime Contractor #21",0,null,null,null,null,null,null,null,null,null,null,null,null,null,null,null,null,null,null,null,null,null,null,null,null,null,"00:00:00"]
[null,"Prime Contractor #22",0,null,null,null,null,null,null,null,null,null,null,null,null,null,null,null,null,null,null,null,null,null,null,null,null,null,"00:00:00"]
[null,"Prime Contractor #23",0,null,null,null,null,null,null,null,null,null,null,null,null,null,null,null,null,null,null,null,null,null,null,null,null,null,"00:00:00"]
[null,"Prime Contractor #24",0,null,null,null,null,null,null,null,null,null,null,null,null,null,null,null,null,null,null,null,null,null,null,null,null,null,"00:00:00"]
[null,"Prime Contractor #25",0,null,null,null,null,null,null,null,null,null,null,null,null,null,null,null,null,null,null,null,null,null,null,null,null,null,"00:00:00"]
[null,"Prime Contractor #26",0,null,null,null,null,null,null,null,null,null,null,null,null,null,null,null,null,null,null,null,null,null,null,null,null,null,"00:00:00"]
[null,"Prime Contractor #27",0,null,null,null,null,null,null,null,null,null,null,null,null,null,null,null,null,null,null,null,null,null,null,null,null,null,"00:00:00"]
[null,"Prime Contractor #28",0,null,null,null,null,null,null,null,null,null,null,null,null,null,null,null,null,null,null,null,null,null,null,null,null,null,"00:00:00"]
[null,"Prime Contractor #29",0,null,null,null,null,null,null,null,null,null,null,null,null,null,null,null,null,null,null,null,null,null,null,null,null,null,"00:00:00"]
[null,"Prime Contractor #30",0,null,null,null,null,null,null,null,null,null,null,null,null,null,null,null,null,null,null,null,null,null,null,null,null,null,"00:00:00"]
[]
[]
[null,null,"2(p)","2(q)",null,null,null,"2(r) ","2(s)",null,null,"2(t) ",null,null,null,"2(u)",null,null,null,"2(k)","2(v)",null,"2(w)",null,null,"2(x)",null,"2(y)","2(z)"]
[null,null,"Construction Subcontractor Name","Subcontractor's Awarded Contract Amount Total                                      (Applicable Project Activities Only)",null,null,null,"Street Address","City",null,null,"State","/","ZIP",null,"Prime Contractor             FEIN #                                              ( XX - XXXXXXX )",null,null,null,"Prime is Sec3?","Subcontr.             FEIN #                (XX - XXXXXXX)",null,"Subcontract. Trade Code (See above.)",null,null,"Subcontract. Business' Race/Ethnicity                          (See above.)",null,"Women Owned Business? (Yes or No)","Section 3 Business?   (Yes or No)"]
[null,"Example","Redi-Rhodes Asphalt",45000,null,null,null,"201 Terrace Avenue","Centerville",null,null,"WI","/",58724,null,"98 - 5560123",null,null,null,"Yes","34 - 2890311",null,4,null,null,2,null,"Yes","Yes"]
["***** Information for   CONSTRUCTION SUBcontractors *****","Subcontractor #1",null,0,null,null,null,null,null,null,null,null,"/",null,null,null,null,null,null,"Not Answered",null,null,"Not Answered",null,null,"Not Answered",null,"Not Answered","Not Answered"]
[null,"Subcontractor #2",null,0,null,null,null,null,null,null,null,null,"/",null,null,null,null,null,null,"Not Answered",null,null,"Not Answered",null,null,"Not Answered",null,"Not Answered","Not Answered"]
[null,"Subcontractor #3",null,0,null,null,null,null,null,null,null,null,"/",null,null,null,null,null,null,"Not Answered",null,null,"Not Answered",null,null,"Not Answered",null,"Not Answered","Not Answered"]
[null,"Subcontractor #4",null,0,null,null,null,null,null,null,null,null,"/",null,null,null,null,null,null,"Not Answered",null,null,"Not Answered",null,null,"Not Answered",null,"Not Answered","Not Answered"]
[null,"Subcontractor #5",null,0,null,null,null,null,null,null,null,null,"/",null,null,null,null,null,null,"Not Answered",null,null,"Not Answered",null,null,"Not Answered",null,"Not Answered","Not Answered"]
[null,"Subcontractor #6",null,0,null,null,null,null,null,null,null,null,"/",null,null,null,null,null,null,"Not Answered",null,null,"Not Answered",null,null,"Not Answered",null,"Not Answered","Not Answered"]
[null,"Subcontractor #7",null,0,null,null,null,null,null,null,null,null,"/",null,null,null,null,null,null,"Not Answered",null,null,"Not Answered",null,null,"Not Answered",null,"Not Answered","Not Answered"]
[null,"Subcontractor #8",null,0,null,null,null,null,null,null,null,null,"/",null,null,null,null,null,null,"Not Answered",null,null,"Not Answered",null,null,"Not Answered",null,"Not Answered","Not Answered"]
[null,"Subcontractor #9",null,0,null,null,null,null,null,null,null,null,"/",null,null,null,null,null,null,"Not Answered",null,null,"Not Answered",null,null,"Not Answered",null,"Not Answered","Not Answered"]
[null,"Subcontractor #10",null,0,null,null,null,null,null,null,null,null,"/",null,null,null,null,null,null,"Not Answered",null,null,"Not Answered",null,null,"Not Answered",null,"Not Answered","Not Answered"]
[null,"Subcontractor #11",null,0,null,null,null,null,null,null,null,null,"/",null,null,null,null,null,null,"Not Answered",null,null,"Not Answered",null,null,"Not Answered",null,"Not Answered","Not Answered"]
[null,"Subcontractor #12",null,0,null,null,null,null,null,null,null,null,"/",null,null,null,null,null,null,"Not Answered",null,null,"Not Answered",null,null,"Not Answered",null,"Not Answered","Not Answered"]
[null,"Subcontractor #13",null,0,null,null,null,null,null,null,null,null,"/",null,null,null,null,null,null,"Not Answered",null,null,"Not Answered",null,null,"Not Answered",null,"Not Answered","Not Answered"]
[null,"Subcontractor #14",null,0,null,null,null,null,null,null,null,null,"/",null,null,null,null,null,null,"Not Answered",null,null,"Not Answered",null,null,"Not Answered",null,"Not Answered","Not Answered"]
[null,"Subcontractor #15",null,0,null,null,null,null,null,null,null,null,"/",null,null,null,null,null,null,"Not Answered",null,null,"Not Answered",null,null,"Not Answered",null,"Not Answered","Not Answered"]
[null,"Subcontractor #16",null,0,null,null,null,null,null,null,null,null,"/",null,null,null,null,null,null,"Not Answered",null,null,"Not Answered",null,null,"Not Answered",null,"Not Answered","Not Answered"]
[null,"Subcontractor #17",null,0,null,null,null,null,null,null,null,null,"/",null,null,null,null,null,null,"Not Answered",null,null,"Not Answered",null,null,"Not Answered",null,"Not Answered","Not Answered"]
[null,"Subcontractor #18",null,0,null,null,null,null,null,null,null,null,"/",null,null,null,null,null,null,"Not Answered",null,null,"Not Answered",null,null,"Not Answered",null,"Not Answered","Not Answered"]
[null,"Subcontractor #19",null,0,null,null,null,null,null,null,null,null,"/",null,null,null,null,null,null,"Not Answered",null,null,"Not Answered",null,null,"Not Answered",null,"Not Answered","Not Answered"]
[null,"Subcontractor #20",null,0,null,null,null,null,null,null,null,null,"/",null,null,null,null,null,null,"Not Answered",null,null,"Not Answered",null,null,"Not Answered",null,"Not Answered","Not Answered"]
[null,"Subcontractor #21",null,0,null,null,null,null,null,null,null,null,"/",null,null,null,null,null,null,"Not Answered",null,null,"Not Answered",null,null,"Not Answered",null,"Not Answered","Not Answered"]
[null,"Subcontractor #22",null,0,null,null,null,null,null,null,null,null,"/",null,null,null,null,null,null,"Not Answered",null,null,"Not Answered",null,null,"Not Answered",null,"Not Answered","Not Answered"]
[null,"Subcontractor #23",null,0,null,null,null,null,null,null,null,null,"/",null,null,null,null,null,null,"Not Answered",null,null,"Not Answered",null,null,"Not Answered",null,"Not Answered","Not Answered"]
[null,"Subcontractor #24",null,0,null,null,null,null,null,null,null,null,"/",null,null,null,null,null,null,"Not Answered",null,null,"Not Answered",null,null,"Not Answered",null,"Not Answered","Not Answered"]
[null,"Subcontractor #25",null,0,null,null,null,null,null,null,null,null,"/",null,null,null,null,null,null,"Not Answered",null,null,"Not Answered",null,null,"Not Answered",null,"Not Answered","Not Answered"]
[null,"Subcontractor #26",null,0,null,null,null,null,null,null,null,null,"/",null,null,null,null,null,null,"Not Answered",null,null,"Not Answered",null,null,"Not Answered",null,"Not Answered","Not Answered"]
[null,"Subcontractor #27",null,0,null,null,null,null,null,null,null,null,"/",null,null,null,null,null,null,"Not Answered",null,null,"Not Answered",null,null,"Not Answered",null,"Not Answered","Not Answered"]
[null,"Subcontractor #28",null,0,null,null,null,null,null,null,null,null,"/",null,null,null,null,null,null,"Not Answered",null,null,"Not Answered",null,null,"Not Answered",null,"Not Answered","Not Answered"]
[null,"Subcontractor #29",null,0,null,null,null,null,null,null,null,null,"/",null,null,null,null,null,null,"Not Answered",null,null,"Not Answered",null,null,"Not Answered",null,"Not Answered","Not Answered"]
[null,"Subcontractor #30",null,0,null,null,null,null,null,null,null,null,"/",null,null,null,null,null,null,"Not Answered",null,null,"Not Answered",null,null,"Not Answered",null,"Not Answered","Not Answered"]
[null,"Total Construction Subcontractor Amounts:",null,{"$f":"SUM(D102:G131)","v":0}]
[]
[]
[null,"PART 3.  NON-CONSTRUCTION CONTRACTS AWARDED"]
[null,null,"3(a)","3(b)",null,null,null,"3(c) ","3(d)",null,null,null,null,null,"3(e) ",null,null,"3(f)",null,null,"3(g)",null,null,"3(h)",null,null,"3(i)",null,"3(j)","3(k)"]
["Information  for  NON-CONSTRUCTION PRIME   Contractors",null,"Non-Construction Prime Contractor Name","Non-Construction Prime Contract Amount Total                         (Applicable Project Activities Only)",null,null,null,"Non-Construction Prime Contract Amount MINUS the Associated Subcontract Amounts","Street Address",null,null,null,null,null,"City",null,null,"State","/","ZIP","Prime Contractor             FEIN #                                   ( XX - XXXXXXX )",null,null,"Prime Contractor's Trade Code (See above.)",null,null,"Prme's Business' Race/Ethnicity                          (See above.)",null,"Women Owned Business? (Yes or No)","Section 3 Business?   (Yes or No)"]
[null,"Example","EFG Project Management, Inc.",900000,null,null,null,100000,"123 Main Street",null,null,null,null,null,"Madison",null,null,"WI","/",53703,"12-3456789",null,null,5,null,null,2,null,"No","Yes"]
[null,"Non-Constr. Prime #1",null,0,null,null,null,0,null,null,null,null,null,null,null,null,null,null,"/",null,null,null,null,"Not Answered",null,null,"Not Answered",null,"Not Answered","Not Answered"]
[null,"Non-Constr. Prime #2",null,0,null,null,null,0,null,null,null,null,null,null,null,null,null,null,"/",null,null,null,null,"Not Answered",null,null,"Not Answered",null,"Not Answered","Not Answered"]
[null,"Non-Constr. Prime #3",null,0,null,null,null,0,null,null,null,null,null,null,null,null,null,null,"/",null,null,null,null,"Not Answered",null,null,"Not Answered",null,"Not Answered","Not Answered"]
[null,"Non-Constr. Prime #4",null,0,null,null,null,0,null,null,null,null,null,null,null,null,null,null,"/",null,null,null,null,"Not Answered",null,null,"Not Answered",null,"Not Answered","Not Answered"]
[null,"Non-Constr. Prime #5",null,0,null,null,null,0,null,null,null,null,null,null,null,null,null,null,"/",null,null,null,null,"Not Answered",null,null,"Not Answered",null,"Not Answered","Not Answered"]
[null,"Non-Constr. Prime #6",null,0,null,null,null,0,null,null,null,null,null,null,null,null,null,null,"/",null,null,null,null,"Not Answered",null,null,"Not Answered",null,"Not Answered","Not Answered"]
[null,"Non-Constr. Prime #7",null,0,null,null,null,0,null,null,null,null,null,null,null,null,null,null,"/",null,null,null,null,"Not Answered",null,null,"Not Answered",null,"Not Answered","Not Answered"]
[null,"Non-Constr. Prime #8",null,0,null,null,null,0,null,null,null,null,null,null,null,null,null,null,"/",null,null,null,null,"Not Answered",null,null,"Not Answered",null,"Not Answered","Not Answered"]
[null,"Non-Constr. Prime #9",null,0,null,null,null,0,null,null,null,null,null,null,null,null,null,null,"/",null,null,null,null,"Not Answered",null,null,"Not Answered",null,"Not Answered","Not Answered"]
[null,"Non-Constr. Prime #10",null,0,null,null,null,0,null,null,null,null,null,null,null,null,null,null,"/",null,null,null,null,"Not Answered",null,null,"Not Answered",null,"Not Answered","Not Answered"]
[null,"Non-Constr. Prime #11",null,0,null,null,null,0,null,null,null,null,null,null,null,null,null,null,"/",null,null,null,null,"Not Answered",null,null,"Not Answered",null,"Not Answered","Not Answered"]
[null,"Non-Constr. Prime #12",null,0,null,null,null,0,null,null,null,null,null,null,null,null,null,null,"/",null,null,null,null,"Not Answered",null,null,"Not Answered",null,"Not Answered","Not Answered"]
[null,"Non-Constr. Prime #13",null,0,null,null,null,0,null,null,null,null,null,null,null,null,null,null,"/",null,null,null,null,"Not Answered",null,null,"Not Answered",null,"Not Answered","Not Answered"]
[null,"Non-Constr. Prime #14",null,0,null,null,null,0,null,null,null,null,null,null,null,null,null,null,"/",null,null,null,null,"Not Answered",null,null,"Not Answered",null,"Not Answered","Not Answered"]
[null,"Non-Constr. Prime #15",null,0,null,null,null,0,null,null,null,null,null,null,null,null,null,null,"/",null,null,null,null,"Not Answered",null,null,"Not Answered",null,"Not Answered","Not Answered"]
[null,"Total Non-Construction Prime Contract Amounts:",null,{"$f":"SUM(D139:D153)","v":0},null,null,null,{"$f":"SUM(H139:H153)","v":0}]
[]
[]
[null,null,"3(l)","3(m)",null,null,null,"3(n) ",null,null,"3(o) ",null,null,null,"3(p)",null,null,"3(q)",null,null,"3(k)","3(r)",null,null,null,null,"3(s)","3(t)","3(u)","3(v)"]
[null,null,"Non-Construction Subcontractor Name","Non-Construction Subcontractor's Awarded Contract Amount Total                                                (Applicable Project Activities Only)",null,null,null,"Street Address",null,null,"City",null,null,null,"State","/","ZIP","Prime Contractor             FEIN #                                ( XX - XXXXXXX )",null,null,"Prime is Sec 3?","Subcontractor FEIN #                                    (XX - XXXXXXX)",null,null,null,null,"Subcontr. Trade Code (See above.)","Subcontr. Business' Race/ Ethnicity     (See above.)","Subcontr. is a Women Owned Business? (Yes or No)","Subcontr. is a Section 3 Business?   (Yes or No)"]
["Information for   NON-CONSTRUCTION SUBcontractors","Example","XYZ Relocation Specialists, LLC",100000,null,null,null,"123 Wisconsin Avenue",null,null,"Janesville",null,null,null,"WI","/",53546,"12-3456789",null,null,"Yes","11-2223333",null,null,null,null,7,1,"Yes","No"]
[null,"Non-Constr. Sub #1",null,0,null,null,null,null,null,null,null,null,null,null,null,"/",null,null,null,null,"Not Answered",null,null,null,null,null,"Not Answered","Not Answered","Not Answered","Not Answered"]
[null,"Non-Constr. Sub #2",null,0,null,null,null,null,null,null,null,null,null,null,null,"/",null,null,null,null,"Not Answered",null,null,null,null,null,"Not Answered","Not Answered","Not Answered","Not Answered"]
[null,"Non-Constr. Sub #3",null,0,null,null,null,null,null,null,null,null,null,null,null,"/",null,null,null,null,"Not Answered",null,null,null,null,null,"Not Answered","Not Answered","Not Answered","Not Answered"]
[null,"Non-Constr. Sub #4",null,0,null,null,null,null,null,null,null,null,null,null,null,"/",null,null,null,null,"Not Answered",null,null,null,null,null,"Not Answered","Not Answered","Not Answered","Not Answered"]
[null,"Non-Constr. Sub #5",null,0,null,null,null,null,null,null,null,null,null,null,null,"/",null,null,null,null,"Not Answered",null,null,null,null,null,"Not Answered","Not Answered","Not Answered","Not Answered"]
[null,"Non-Constr. Sub #6",null,0,null,null,null,null,null,null,null,null,null,null,null,"/",null,null,null,null,"Not Answered",null,null,null,null,null,"Not Answered","Not Answered","Not Answered","Not Answered"]
[null,"Non-Constr. Sub #7",null,0,null,null,null,null,null,null,null,null,null,null,null,"/",null,null,null,null,"Not Answered",null,null,null,null,null,"Not Answered","Not Answered","Not Answered","Not Answered"]
[null,"Non-Constr. Sub #8",null,0,null,null,null,null,null,null,null,null,null,null,null,"/",null,null,null,null,"Not Answered",null,null,null,null,null,"Not Answered","Not Answered","Not Answered","Not Answered"]
[null,"Non-Constr. Sub #9",null,0,null,null,null,null,null,null,null,null,null,null,null,"/",null,null,null,null,"Not Answered",null,null,null,null,null,"Not Answered","Not Answered","Not Answered","Not Answered"]
[null,"Non-Constr. Sub #10",null,0,null,null,null,null,null,null,null,null,null,null,null,"/",null,null,null,null,"Not Answered",null,null,null,null,null,"Not Answered","Not Answered","Not Answered","Not Answered"]
[null,"Non-Constr. Sub #11",null,0,null,null,null,null,null,null,null,null,null,null,null,"/",null,null,null,null,"Not Answered",null,null,null,null,null,"Not Answered","Not Answered","Not Answered","Not Answered"]
[null,"Non-Constr. Sub #12",null,0,null,null,null,null,null,null,null,null,null,null,null,"/",null,null,null,null,"Not Answered",null,null,null,null,null,"Not Answered","Not Answered","Not Answered","Not Answered"]
[null,"Non-Constr. Sub #13",null,0,null,null,null,null,null,null,null,null,null,null,null,"/",null,null,null,null,"Not Answered",null,null,null,null,null,"Not Answered","Not Answered","Not Answered","Not Answered"]
[null,"Non-Constr. Sub #14",null,0,null,null,null,null,null,null,null,null,null,null,null,"/",null,null,null,null,"Not Answered",null,null,null,null,null,"Not Answered","Not Answered","Not Answered","Not Answered"]
[null,"Non-Constr. Sub #15",null,0,null,null,null,null,null,null,null,null,null,null,null,"/",null,null,null,null,"Not Answered",null,null,null,null,null,"Not Answered","Not Answered","Not Answered","Not Answered"]
[null,"Total for Non-Construction Subcontractors:",null,{"$f":"SUM(D160:D174)","v":0}]
[]
[]
[null,"PART 4.  LABOR STANDARDS COMPLAINTS",null,null,null,null,null,null,null,null,null,"PART 5.  LABOR STANDARDS MONITORING - PAYROLL UNDERPAYMENTS"]
[null,"Enter the Contractors [prime contractor(s), subcontractor(s), or lower-tier subcontractor(s)] for which complaints were filed or investigations or §5.11 hearings  occurred during this reporting period. ",null,null,null,null,null,null,null,null,null,"5(a)",null,null,null,null,"5(b)",null,null,"5(c)",null,null,null,"5(d)",null,null,null,"5(e)",null,"5(f)"]
[null,null,null,null,null,null,null,null,null,null,null,"Contractor's Name(s):",null,null,null,null,"Total # Workers Paid UNDERPAYMENT  Wage Restitution",null,null,"Total STRAIGHT-TIME Wage Restitution Paid",null,null,null,"Total OVERTIME Wage Restitution Paid",null,null,null,"Total Liquidated Damages Collected for CWHSSA Compliance",null,"Section 5.7 Form Attached?"]
[]
[null,"4(a)",null,"4(b)",null,null,null,"4(c) "]
[null,"Contractor's Name(s):",null,"HUD or DOL or Both?",null,null,null,"Investigation or Hearing or Both?",null,null,null,"Example:  XYZ Builders",null,null,null,null,12,null,null,4400,null,null,null,1500,null,null,null,6480,null,"Yes"]
[null,null,null,"Not Answered",null,null,null,"Not Answered",null,null,null,null,null,null,null,null,null,null,null,0,null,null,null,0,null,null,null,0,null,"Not Answered"]
[null,null,null,"Not Answered",null,null,null,"Not Answered",null,null,null,null,null,null,null,null,null,null,null,0,null,null,null,0,null,null,null,0,null,"Not Answered"]
[null,null,null,"Not Answered",null,null,null,"Not Answered",null,null,null,null,null,null,null,null,null,null,null,0,null,null,null,0,null,null,null,0,null,"Not Answered"]
[null,null,null,"Not Answered",null,null,null,"Not Answered",null,null,null,null,null,null,null,null,null,null,null,0,null,null,null,0,null,null,null,0,null,"Not Answered"]
[null,null,null,"Not Answered",null,null,null,"Not Answered",null,null,null,null,null,null,null,null,null,null,null,0,null,null,null,0,null,null,null,0,null,"Not Answered"]
[null,null,null,"Not Answered",null,null,null,"Not Answered",null,null,null,null,null,null,null,null,null,null,null,0,null,null,null,0,null,null,null,0,null,"Not Answered"]
[null,null,null,"Not Answered",null,null,null,"Not Answered",null,null,null,null,null,null,null,null,null,null,null,0,null,null,null,0,null,null,null,0,null,"Not Answered"]
[null,null,null,"Not Answered",null,null,null,"Not Answered",null,null,null,null,null,null,null,null,null,null,null,0,null,null,null,0,null,null,null,0,null,"Not Answered"]
[null,null,null,"Not Answered",null,null,null,"Not Answered",null,null,null,null,null,null,null,null,null,null,null,0,null,null,null,0,null,null,null,0,null,"Not Answered"]
[null,null,null,"Not Answered",null,null,null,"Not Answered",null,null,null,null,null,null,null,null,null,null,null,0,null,null,null,0,null,null,null,0,null,"Not Answered"]
[null,null,null,null,null,null,null,null,null,null,null,"Totals for All Contractors:",null,null,null,null,{"$f":"SUM(Q184:R193)","v":0},null,null,{"$f":"SUM(T184:U193)","v":0},null,null,null,{"$f":"SUM(X184:AA193)","v":0},null,null,null,{"$f":"SUM(AB184:AC193)","v":0}]
[]
[]
[" "]
[null,null,null,null,null,null,null,null,{"$f":"IF(I200>0,\"This PART 7 section (below) does not apply to your CDBG project.\",\" \")","v":" "}]
[null,"PART 6.  SECTION 3 - WORKER HOURS ON THIS PROJECT (APPLICABLE TO GRANTEES AWARDED ON OR AFTER 11/30/2020.)"]
[null,"7(a) ","7(b)","7(c)",null,null,null,"7(d)",{"$f":"IF($Q$5=\"Before\",1,0)","v":0},null,"7(e) ",null,null,null,"7(f)",null,null,"7(g)",null,null,"7(h)",null,null,null,"7(i) ",null,null,"7(j)","7(k)","7(l)"]
["**** Information for CONSTRUCTION PRIME Contractors                                                           AND GRANTEES/UGLGs & SUBRECIPIENTS with Construction Work  ****","Construction PRIME Contractor's Name; or GRANTEE/UGLG Name or SUBRECIPIENT Name (if had Construction work hours)","Total Hours Worked by ALL Workers on this Project To Date","Total Hours Worked by ALL SECTION 3 Workers",null,null,null,"Total Hours Worked by TARGETED SECTION 3 Workers",{"$f":"IF($Q$5=\"Before\",1,0)","v":0},"***** Information for   CONSTRUCTION  SUBcontractors *****","Construction SUBCONTRACTOR'S Name:",null,null,null,"Total Hours Worked by ALL Workers on this                    Project To Date",null,null,"Total Hours Worked by ALL SECTION 3 Workers",null,null,"Total Hours Worked by TARGETED SECTION 3 Workers",null,null,"**  Information for   NON-CONSTRUCTION PRIME Contractors                           AND GRANTEES/UGLGs & SUBRECIPIENTS  **","Non-Construction PRIME Contractor's Name; or GRANTEE Name or SUBRECIPIENT Name (if had any Non-Construction work hours):",null,null,"Total Hours Worked by ALL Workers on this Project             To Date","Total Hours Worked by ALL SECTION 3 Workers","Total Hours Worked by TARGETED SECTION 3 Workers"]
[null,"LMN Contractors, Inc.",2500,45,null,null,null,20,0,null,"QPR Contractors, Inc.",null,null,null,3000,null,null,150,null,null,50,null,null,null,"STU Contractors, Inc.",null,null,200,25,5]
[null,null,null,null,null,null,null,null,0]
[null,null,null,null,null,null,null,null,0]
[null,null,null,null,null,null,null,null,0]
[null,null,null,null,null,null,null,null,0]
[null,null,null,null,null,null,null,null,0]
[null,null,null,null,null,null,null,null,0]
[null,null,null,null,null,null,null,null,0]
[null,null,null,null,null,null,null,null,0]
[null,null,null,null,null,null,null,null,0]
[null,null,null,null,null,null,null,null,0]
[null,null,null,null,null,null,null,null,0]
[null,null,null,null,null,null,null,null,0]
[null,null,null,null,null,null,null,null,0,null,null,null,null,null,null,null,null,null,null,null,null,null,null,null,"Total(s):",null,null,{"$f":"SUM(AB203:AB214)","v":0},{"$f":"SUM(AC203:AC214)","v":0},{"$f":"SUM(AD203:AD214)","v":0}]
[null,null,null,null,null,null,null,null,0]
[null,null,null,null,null,null,null,null,0]
[null,null,null,null,null,null,null,null,0,null,null,null,null,null,null,null,null,null,null,null,null,null,null,null,"7(m) ",null,null,"7(n)","7(o)","7(p)"]
[null,null,null,null,null,null,null,null,0,null,null,null,null,null,null,null,null,null,null,null,null,null,null,"**  Information for   NON-CONSTRUCTION SUBcontractors **","Non-Construction SUBCONTRACTOR'S Name:",null,null,"Total Hours Worked by ALL Workers on this Project             To Date","Total Hours Worked by ALL SECTION 3 Workers ","Total Hours Worked by TARGETED SECTION 3 Workers "]
[null,null,null,null,null,null,null,null,0]
[null,null,null,null,null,null,null,null,0]
[null,null,null,null,null,null,null,null,0]
[null,"Total(s):",{"$f":"SUM(C203:C222)","v":0},{"$f":"SUM(D203:G222)","v":0},null,null,null,{"$f":"SUM(H203:H222)","v":0},0,null,"Total(s):",null,null,null,{"$f":"SUM(O203:Q222)","v":0},null,null,{"$f":"SUM(R203:T222)","v":0},null,null,{"$f":"SUM(U203:V222)","v":0}]
[null,null,null,null,null,null,null,null,0]
[null,null,null,null,null,null,null,null,0]
[null,null,null,null,null,null,null,null,{"$f":"IF($Q$5=\"Before\",1,0)","v":0},null,null,null,null,null,null,null,null,null,null,null,null,null,null,null,"VWX Contractors, Inc.",null,null,50,10,0]
[null,null,null,null,null,null,null,null,0]
[null,null,null,null,null,null,null,null,0]
[null,null,null,null,null,null,null,null,0]
["Section 3 \"Safe Harbor\" Benchmarks:",null,null,null,null,null,null,null,0]
[null,null,null,null,null,null,null,null,0]
[1,"25% or more of ALL labor hours must be worked by Section 3 Workers.",null,null,null,null,null,null,0,null,"Calculation Double-Check(s)"]
[null,"Percentage all labor ",null,null,null,null,null,null,0,null,"Total Targeted Sec3 Hours Worked:",null,null,null,null,null,null,{"$f":"H223+U223+AD215+AD242","v":0}]
[null,"hours worked by Sec3",null,null,"=",null,{"$f":"R234/R235","v":{"$error":"#DIV/0!"}},null,0,null,"Total Sec3 Hours Worked:",null,null,null,null,null,null,{"$f":"D223+R223+AC215+AC242","v":0}]
[null,null,null,null,null,null,null,null,0,null,"Total Hours Worked:",null,null,null,null,null,null,{"$f":"C223+O223+AB215+AB242","v":0}]
[2,"5% or more of ALL labor hours must be worked by Targeted Section 3 Workers.",null,null,null,null,null,null,0]
[null,"Percentage all labor",null,null,null,null,null,null,0]
[null,"hours worked by",null,null,null,null,null,null,0]
[null,"Targeted Sec3 workers",null,null,"=",null,{"$f":"R233/R235","v":{"$error":"#DIV/0!"}},null,0]
[null,null,null,null,null,null,null,null,0]
[null,null,null,null,null,null,null,null,0]
[null,null,null,null,null,null,null,null,0,null,null,null,null,null,null,null,null,null,null,null,null,null,null,null,"Total(s):",null,null,{"$f":"SUM(AB227:AB239)","v":0},{"$f":"SUM(AC227:AC239)","v":0},{"$f":"SUM(AD227:AD239)","v":0}]
[]
[]
[]
[null,"PART 7.  SECTION 3 - OUTREACH/PROMOTION & BEST EFFORTS"]
[{"$f":"IF($Q$5=\"On or After\",1,IF($Q$5=\"Before\",2,0))","v":1}]
[null,null,null,null,null,"Check ALL that apply - Report all actions taken TO DATE FOR THIS PROJECT.  Maintain records and make "]
[null,null,null,null,null,"available for HUD to review documentation of any efforts marked."]
[null,null,null,null,null,"TIP:  Most common entries are #1-7 and #13 - Refer to \"TIP\" notes (denoted with the red triangles in the upper right corners of cells) to determine if the item should be checked."]
[null,null,null,null,"\"X\""]
[{"$f":"IF($Q$5=\"On or After\",1,IF($Q$5=\"Before\",2,0))","v":1},null,null,null,null,null,"1. No actions taken to date to demonstrate Section 3 \"best efforts\" in meeting HUD Section 3 Benchmarks.",null,null,null,null,null,null,null,null,null,null,null,null,null,"HIRING    Efforts"]
[1,null,null,null,null,null,"2. Outreach efforts to identify and secure bids from Section 3 business concerns."]
[1,null,null,null,null,null,"3. Outreach efforts to generate job applicants who are Public Housing Targeted Workers."]
[1,null,null,null,null,null,"4. Outreach efforts to generate job applicants who are Other Funding Targeted Workers."]
[1,null,null,null,null,null,"5. Direct, on-the-job training (including apprenticeships)."]
[1,null,null,null,null,null,"6. Indirect training such as arranging for, contracting for, or paying tuition for, off-site training."]
[1,null,null,null,null,null,"7. Division of contracts into smaller jobs to facilitate participation by Section 3 business concerns."]
[1,null,null,null,null,null,"8. Technical assistance to help Section 3 workers compete for jobs (e.g., resume assistance, coaching, etc.)."]
[1,null,null,null,null,null,"9. Technical assistance to help Section 3 business concerns understand and bid on contracts."]
[1,null,null,null,null,null,"10. Provided or connected residents with assistance in seeking employment including:  drafting resumes, preparing for interviews, finding job opportunities, connecting residents to job placement services."]
[1,null,null,null,null,null,null,null,null,null,null,null,null,null,null,null,null,null,null,null,"CONTRACTING    Efforts"]
[1,null,null,null,null,null,"11. Held one or more job fairs."]
[1,null,null,null,null,null,"12. Provided or connected residents with supportive services that can provide direct services or referrals."]
[1,null,null,null,null,null,"13. Provided or connected residents with supportive services that provide one or more of the following:  work readiness health screenings, interview clothing, uniforms, test fees, transportation."]
[1]
[1,null,null,null,null,null,"14. Assisted residents with finding child care."]
[1,null,null,null,null,null,"15. Assisted residents to apply for (or attend) community college or a four (4) year educational institution."]
[1,null,null,null,null,null,"16. Assisted residents to apply for (or attend) vocational/technical training."]
[1,null,null,null,null,null,"17. Assisted residents to obtain financial literacy training and/or coaching."]
[1,null,null,null,null,null,"18. Bonding assistance, guaranties, or other efforts to support viable bids from Section 3 business concerns."]
[1,null,null,null,null,null,"19. Provided or connected residents with training on computer use or online technologies."]
[null,null,null,null,null,null,"20. Other:","[Describe/specify here.]"]
[null,"PART 8.  COMMENTS"]
[]
[null,"[Provide additional comments/explanations here.]   "]

{"sheet":"Drop-Down Options","index":1,"n_rows":13,"n_cols":7,"rows_kept":13,"cut":false,"hidden":false,"merged":[]}
[]
["Trade Code(s):","Racial / Ethnic Code(s):","Yes / No:","Yes / No / Not Applicable:","HUD / DOL / Both","Investigation / Hearing / Both","Grant Award Date"]
["Not Answered","Not Answered","Not Answered","Not Answered","Not Answered","Not Answered","Not Answered"]
[1,1,"Yes","Yes","HUD","Investigation","Before"]
[2,2,"No","No","DOL","Hearing","On or After"]
[3,3,null,"Not Applicable","Both","Both"]
[4,4]
[5,5]
[6,6]
[7]
[8]
[9]
[0]

{"sheet":"HUD Form 2516_Rev","index":2,"n_rows":97,"n_cols":17,"rows_kept":97,"cut":false,"hidden":false,"merged":[[4,0,33,0],[3,11,3,16],[35,0,64,0],[66,0,80,0],[82,0,96,0]]}
[]
[]
[null,null,"Grant/Project Number","Amount of Contract or Subcontract","Type of Trade Code","Business' Race / Ethnicity","WBE?","Prime's FEIN","Prime is Sec3?","Subcontractor's FEIN","Subcontr.              is Sec3?","Name","Street","City","State","/","ZIP Code"]
[null,null,"7a.","7b.","7c.","7d.","7e.","7f.","7g.","7h.","7i.","7j."]
["***** Information for   CONSTRUCTION PRIME   Contractors *****",1,{"$f":"'Reporting Info'!AB5","v":"(Grant Agreement #)"},{"$f":"'Reporting Info'!H31","v":0},{"$f":"'Reporting Info'!X31","v":"Not Answered"},{"$f":"'Reporting Info'!AA31","v":"Not Answered"},{"$f":"'Reporting Info'!AC31","v":"Not Answered"},{"$f":"'Reporting Info'!U31","v":0},{"$f":"'Reporting Info'!AD31","v":"Not Answered"},"Not Applicable","Not Applicable",{"$f":"'Reporting Info'!C31","v":0},{"$f":"'Reporting Info'!I31","v":0},{"$f":"'Reporting Info'!O31","v":0},{"$f":"'Reporting Info'!R31","v":0},"/",{"$f":"'Reporting Info'!T31","v":0}]
[null,2,{"$f":"'Reporting Info'!AB5","v":"(Grant Agreement #)"},{"$f":"'Reporting Info'!H32","v":0},{"$f":"'Reporting Info'!X32","v":"Not Answered"},{"$f":"'Reporting Info'!AA32","v":"Not Answered"},{"$f":"'Reporting Info'!AC32","v":"Not Answered"},{"$f":"'Reporting Info'!U32","v":0},{"$f":"'Reporting Info'!AD32","v":"Not Answered"},"Not Applicable","Not Applicable",{"$f":"'Reporting Info'!C32","v":0},{"$f":"'Reporting Info'!I32","v":0},{"$f":"'Reporting Info'!O32","v":0},{"$f":"'Reporting Info'!R32","v":0},"/",{"$f":"'Reporting Info'!T32","v":0}]
[null,3,{"$f":"'Reporting Info'!AB5","v":"(Grant Agreement #)"},{"$f":"'Reporting Info'!H33","v":0},{"$f":"'Reporting Info'!X33","v":"Not Answered"},{"$f":"'Reporting Info'!AA33","v":"Not Answered"},{"$f":"'Reporting Info'!AC33","v":"Not Answered"},{"$f":"'Reporting Info'!U33","v":0},{"$f":"'Reporting Info'!AD33","v":"Not Answered"},"Not Applicable","Not Applicable",{"$f":"'Reporting Info'!C33","v":0},{"$f":"'Reporting Info'!I33","v":0},{"$f":"'Reporting Info'!O33","v":0},{"$f":"'Reporting Info'!R33","v":0},"/",{"$f":"'Reporting Info'!T33","v":0}]
[null,4,{"$f":"'Reporting Info'!AB5","v":"(Grant Agreement #)"},{"$f":"'Reporting Info'!H34","v":0},{"$f":"'Reporting Info'!X34","v":"Not Answered"},{"$f":"'Reporting Info'!AA34","v":"Not Answered"},{"$f":"'Reporting Info'!AC34","v":"Not Answered"},{"$f":"'Reporting Info'!U34","v":0},{"$f":"'Reporting Info'!AD34","v":"Not Answered"},"Not Applicable","Not Applicable",{"$f":"'Reporting Info'!C34","v":0},{"$f":"'Reporting Info'!I34","v":0},{"$f":"'Reporting Info'!O34","v":0},{"$f":"'Reporting Info'!R34","v":0},"/",{"$f":"'Reporting Info'!T34","v":0}]
[null,5,{"$f":"'Reporting Info'!AB5","v":"(Grant Agreement #)"},{"$f":"'Reporting Info'!H35","v":0},{"$f":"'Reporting Info'!X35","v":"Not Answered"},{"$f":"'Reporting Info'!AA35","v":"Not Answered"},{"$f":"'Reporting Info'!AC35","v":"Not Answered"},{"$f":"'Reporting Info'!U35","v":0},{"$f":"'Reporting Info'!AD35","v":"Not Answered"},"Not Applicable","Not Applicable",{"$f":"'Reporting Info'!C35","v":0},{"$f":"'Reporting Info'!I35","v":0},{"$f":"'Reporting Info'!O35","v":0},{"$f":"'Reporting Info'!R35","v":0},"/",{"$f":"'Reporting Info'!T35","v":0}]
[null,6,{"$f":"'Reporting Info'!AB5","v":"(Grant Agreement #)"},{"$f":"'Reporting Info'!H36","v":0},{"$f":"'Reporting Info'!X36","v":"Not Answered"},{"$f":"'Reporting Info'!AA36","v":"Not Answered"},{"$f":"'Reporting Info'!AC36","v":"Not Answered"},{"$f":"'Reporting Info'!U36","v":0},{"$f":"'Reporting Info'!AD36","v":"Not Answered"},"Not Applicable","Not Applicable",{"$f":"'Reporting Info'!C36","v":0},{"$f":"'Reporting Info'!I36","v":0},{"$f":"'Reporting Info'!O36","v":0},{"$f":"'Reporting Info'!R36","v":0},"/",{"$f":"'Reporting Info'!T36","v":0}]
[null,7,{"$f":"'Reporting Info'!AB5","v":"(Grant Agreement #)"},{"$f":"'Reporting Info'!H37","v":0},{"$f":"'Reporting Info'!X37","v":"Not Answered"},{"$f":"'Reporting Info'!AA37","v":"Not Answered"},{"$f":"'Reporting Info'!AC37","v":"Not Answered"},{"$f":"'Reporting Info'!U37","v":0},{"$f":"'Reporting Info'!AD37","v":"Not Answered"},"Not Applicable","Not Applicable",{"$f":"'Reporting Info'!C37","v":0},{"$f":"'Reporting Info'!I37","v":0},{"$f":"'Reporting Info'!O37","v":0},{"$f":"'Reporting Info'!R37","v":0},"/",{"$f":"'Reporting Info'!T37","v":0}]
[null,8,{"$f":"'Reporting Info'!AB5","v":"(Grant Agreement #)"},{"$f":"'Reporting Info'!H38","v":0},{"$f":"'Reporting Info'!X38","v":"Not Answered"},{"$f":"'Reporting Info'!AA38","v":"Not Answered"},{"$f":"'Reporting Info'!AC38","v":"Not Answered"},{"$f":"'Reporting Info'!U38","v":0},{"$f":"'Reporting Info'!AD38","v":"Not Answered"},"Not Applicable","Not Applicable",{"$f":"'Reporting Info'!C38","v":0},{"$f":"'Reporting Info'!I38","v":0},{"$f":"'Reporting Info'!O38","v":0},{"$f":"'Reporting Info'!R38","v":0},"/",{"$f":"'Reporting Info'!T38","v":0}]
[null,9,{"$f":"'Reporting Info'!AB5","v":"(Grant Agreement #)"},{"$f":"'Reporting Info'!H39","v":0},{"$f":"'Reporting Info'!X39","v":"Not Answered"},{"$f":"'Reporting Info'!AA39","v":"Not Answered"},{"$f":"'Reporting Info'!AC39","v":"Not Answered"},{"$f":"'Reporting Info'!U39","v":0},{"$f":"'Reporting Info'!AD39","v":"Not Answered"},"Not Applicable","Not Applicable",{"$f":"'Reporting Info'!C39","v":0},{"$f":"'Reporting Info'!I39","v":0},{"$f":"'Reporting Info'!O39","v":0},{"$f":"'Reporting Info'!R39","v":0},"/",{"$f":"'Reporting Info'!T39","v":0}]
[null,10,{"$f":"'Reporting Info'!AB5","v":"(Grant Agreement #)"},{"$f":"'Reporting Info'!H40","v":0},{"$f":"'Reporting Info'!X40","v":"Not Answered"},{"$f":"'Reporting Info'!AA40","v":"Not Answered"},{"$f":"'Reporting Info'!AC40","v":"Not Answered"},{"$f":"'Reporting Info'!U40","v":0},{"$f":"'Reporting Info'!AD40","v":"Not Answered"},"Not Applicable","Not Applicable",{"$f":"'Reporting Info'!C40","v":0},{"$f":"'Reporting Info'!I40","v":0},{"$f":"'Reporting Info'!O40","v":0},{"$f":"'Reporting Info'!R40","v":0},"/",{"$f":"'Reporting Info'!T40","v":0}]
[null,11,{"$f":"'Reporting Info'!AB5","v":"(Grant Agreement #)"},{"$f":"'Reporting Info'!H41","v":0},{"$f":"'Reporting Info'!X41","v":"Not Answered"},{"$f":"'Reporting Info'!AA41","v":"Not Answered"},{"$f":"'Reporting Info'!AC41","v":"Not Answered"},{"$f":"'Reporting Info'!U41","v":0},{"$f":"'Reporting Info'!AD41","v":"Not Answered"},"Not Applicable","Not Applicable",{"$f":"'Reporting Info'!C41","v":0},{"$f":"'Reporting Info'!I41","v":0},{"$f":"'Reporting Info'!O41","v":0},{"$f":"'Reporting Info'!R41","v":0},"/",{"$f":"'Reporting Info'!T41","v":0}]
[null,12,{"$f":"'Reporting Info'!AB5","v":"(Grant Agreement #)"},{"$f":"'Reporting Info'!H42","v":0},{"$f":"'Reporting Info'!X42","v":"Not Answered"},{"$f":"'Reporting Info'!AA42","v":"Not Answered"},{"$f":"'Reporting Info'!AC42","v":"Not Answered"},{"$f":"'Reporting Info'!U42","v":0},{"$f":"'Reporting Info'!AD42","v":"Not Answered"},"Not Applicable","Not Applicable",{"$f":"'Reporting Info'!C42","v":0},{"$f":"'Reporting Info'!I42","v":0},{"$f":"'Reporting Info'!O42","v":0},{"$f":"'Reporting Info'!R42","v":0},"/",{"$f":"'Reporting Info'!T42","v":0}]
[null,13,{"$f":"'Reporting Info'!AB5","v":"(Grant Agreement #)"},{"$f":"'Reporting Info'!H43","v":0},{"$f":"'Reporting Info'!X43","v":"Not Answered"},{"$f":"'Reporting Info'!AA43","v":"Not Answered"},{"$f":"'Reporting Info'!AC43","v":"Not Answered"},{"$f":"'Reporting Info'!U43","v":0},{"$f":"'Reporting Info'!AD43","v":"Not Answered"},"Not Applicable","Not Applicable",{"$f":"'Reporting Info'!C43","v":0},{"$f":"'Reporting Info'!I43","v":0},{"$f":"'Reporting Info'!O43","v":0},{"$f":"'Reporting Info'!R43","v":0},"/",{"$f":"'Reporting Info'!T43","v":0}]
[null,14,{"$f":"'Reporting Info'!AB5","v":"(Grant Agreement #)"},{"$f":"'Reporting Info'!H44","v":0},{"$f":"'Reporting Info'!X44","v":"Not Answered"},{"$f":"'Reporting Info'!AA44","v":"Not Answered"},{"$f":"'Reporting Info'!AC44","v":"Not Answered"},{"$f":"'Reporting Info'!U44","v":0},{"$f":"'Reporting Info'!AD44","v":"Not Answered"},"Not Applicable","Not Applicable",{"$f":"'Reporting Info'!C44","v":0},{"$f":"'Reporting Info'!I44","v":0},{"$f":"'Reporting Info'!O44","v":0},{"$f":"'Reporting Info'!R44","v":0},"/",{"$f":"'Reporting Info'!T44","v":0}]
[null,15,{"$f":"'Reporting Info'!AB5","v":"(Grant Agreement #)"},{"$f":"'Reporting Info'!H45","v":0},{"$f":"'Reporting Info'!X45","v":"Not Answered"},{"$f":"'Reporting Info'!AA45","v":"Not Answered"},{"$f":"'Reporting Info'!AC45","v":"Not Answered"},{"$f":"'Reporting Info'!U45","v":0},{"$f":"'Reporting Info'!AD45","v":"Not Answered"},"Not Applicable","Not Applicable",{"$f":"'Reporting Info'!C45","v":0},{"$f":"'Reporting Info'!I45","v":0},{"$f":"'Reporting Info'!O45","v":0},{"$f":"'Reporting Info'!R45","v":0},"/",{"$f":"'Reporting Info'!T45","v":0}]
[null,16,{"$f":"'Reporting Info'!AB5","v":"(Grant Agreement #)"},{"$f":"'Reporting Info'!H46","v":0},{"$f":"'Reporting Info'!X46","v":"Not Answered"},{"$f":"'Reporting Info'!AA46","v":"Not Answered"},{"$f":"'Reporting Info'!AC46","v":"Not Answered"},{"$f":"'Reporting Info'!U46","v":0},{"$f":"'Reporting Info'!AD46","v":"Not Answered"},"Not Applicable","Not Applicable",{"$f":"'Reporting Info'!C46","v":0},{"$f":"'Reporting Info'!I46","v":0},{"$f":"'Reporting Info'!O46","v":0},{"$f":"'Reporting Info'!R46","v":0},"/",{"$f":"'Reporting Info'!T46","v":0}]
[null,17,{"$f":"'Reporting Info'!AB5","v":"(Grant Agreement #)"},{"$f":"'Reporting Info'!H47","v":0},{"$f":"'Reporting Info'!X47","v":"Not Answered"},{"$f":"'Reporting Info'!AA47","v":"Not Answered"},{"$f":"'Reporting Info'!AC47","v":"Not Answered"},{"$f":"'Reporting Info'!U47","v":0},{"$f":"'Reporting Info'!AD47","v":"Not Answered"},"Not Applicable","Not Applicable",{"$f":"'Reporting Info'!C47","v":0},{"$f":"'Reporting Info'!I47","v":0},{"$f":"'Reporting Info'!O47","v":0},{"$f":"'Reporting Info'!R47","v":0},"/",{"$f":"'Reporting Info'!T47","v":0}]
[null,18,{"$f":"'Reporting Info'!AB5","v":"(Grant Agreement #)"},{"$f":"'Reporting Info'!H48","v":0},{"$f":"'Reporting Info'!X48","v":"Not Answered"},{"$f":"'Reporting Info'!AA48","v":"Not Answered"},{"$f":"'Reporting Info'!AC48","v":"Not Answered"},{"$f":"'Reporting Info'!U48","v":0},{"$f":"'Reporting Info'!AD48","v":"Not Answered"},"Not Applicable","Not Applicable",{"$f":"'Reporting Info'!C48","v":0},{"$f":"'Reporting Info'!I48","v":0},{"$f":"'Reporting Info'!O48","v":0},{"$f":"'Reporting Info'!R48","v":0},"/",{"$f":"'Reporting Info'!T48","v":0}]
[null,19,{"$f":"'Reporting Info'!AB5","v":"(Grant Agreement #)"},{"$f":"'Reporting Info'!H49","v":0},{"$f":"'Reporting Info'!X49","v":"Not Answered"},{"$f":"'Reporting Info'!AA49","v":"Not Answered"},{"$f":"'Reporting Info'!AC49","v":"Not Answered"},{"$f":"'Reporting Info'!U49","v":0},{"$f":"'Reporting Info'!AD49","v":"Not Answered"},"Not Applicable","Not Applicable",{"$f":"'Reporting Info'!C49","v":0},{"$f":"'Reporting Info'!I49","v":0},{"$f":"'Reporting Info'!O49","v":0},{"$f":"'Reporting Info'!R49","v":0},"/",{"$f":"'Reporting Info'!T49","v":0}]
[null,20,{"$f":"'Reporting Info'!AB5","v":"(Grant Agreement #)"},{"$f":"'Reporting Info'!H50","v":0},{"$f":"'Reporting Info'!X50","v":"Not Answered"},{"$f":"'Reporting Info'!AA50","v":"Not Answered"},{"$f":"'Reporting Info'!AC50","v":"Not Answered"},{"$f":"'Reporting Info'!U50","v":0},{"$f":"'Reporting Info'!AD50","v":"Not Answered"},"Not Applicable","Not Applicable",{"$f":"'Reporting Info'!C50","v":0},{"$f":"'Reporting Info'!I50","v":0},{"$f":"'Reporting Info'!O50","v":0},{"$f":"'Reporting Info'!R50","v":0},"/",{"$f":"'Reporting Info'!T50","v":0}]
[null,21,{"$f":"'Reporting Info'!AB5","v":"(Grant Agreement #)"},{"$f":"'Reporting Info'!H51","v":0},{"$f":"'Reporting Info'!X51","v":"Not Answered"},{"$f":"'Reporting Info'!AA51","v":"Not Answered"},{"$f":"'Reporting Info'!AC51","v":"Not Answered"},{"$f":"'Reporting Info'!U51","v":0},{"$f":"'Reporting Info'!AD51","v":"Not Answered"},"Not Applicable","Not Applicable",{"$f":"'Reporting Info'!C51","v":0},{"$f":"'Reporting Info'!I51","v":0},{"$f":"'Reporting Info'!O51","v":0},{"$f":"'Reporting Info'!R51","v":0},"/",{"$f":"'Reporting Info'!T51","v":0}]
[null,22,{"$f":"'Reporting Info'!AB5","v":"(Grant Agreement #)"},{"$f":"'Reporting Info'!H52","v":0},{"$f":"'Reporting Info'!X52","v":"Not Answered"},{"$f":"'Reporting Info'!AA52","v":"Not Answered"},{"$f":"'Reporting Info'!AC52","v":"Not Answered"},{"$f":"'Reporting Info'!U52","v":0},{"$f":"'Reporting Info'!AD52","v":"Not Answered"},"Not Applicable","Not Applicable",{"$f":"'Reporting Info'!C52","v":0},{"$f":"'Reporting Info'!I52","v":0},{"$f":"'Reporting Info'!O52","v":0},{"$f":"'Reporting Info'!R52","v":0},"/",{"$f":"'Reporting Info'!T52","v":0}]
[null,23,{"$f":"'Reporting Info'!AB5","v":"(Grant Agreement #)"},{"$f":"'Reporting Info'!H53","v":0},{"$f":"'Reporting Info'!X53","v":"Not Answered"},{"$f":"'Reporting Info'!AA53","v":"Not Answered"},{"$f":"'Reporting Info'!AC53","v":"Not Answered"},{"$f":"'Reporting Info'!U53","v":0},{"$f":"'Reporting Info'!AD53","v":"Not Answered"},"Not Applicable","Not Applicable",{"$f":"'Reporting Info'!C53","v":0},{"$f":"'Reporting Info'!I53","v":0},{"$f":"'Reporting Info'!O53","v":0},{"$f":"'Reporting Info'!R53","v":0},"/",{"$f":"'Reporting Info'!T53","v":0}]
[null,24,{"$f":"'Reporting Info'!AB5","v":"(Grant Agreement #)"},{"$f":"'Reporting Info'!H54","v":0},{"$f":"'Reporting Info'!X54","v":"Not Answered"},{"$f":"'Reporting Info'!AA54","v":"Not Answered"},{"$f":"'Reporting Info'!AC54","v":"Not Answered"},{"$f":"'Reporting Info'!U54","v":0},{"$f":"'Reporting Info'!AD54","v":"Not Answered"},"Not Applicable","Not Applicable",{"$f":"'Reporting Info'!C54","v":0},{"$f":"'Reporting Info'!I54","v":0},{"$f":"'Reporting Info'!O54","v":0},{"$f":"'Reporting Info'!R54","v":0},"/",{"$f":"'Reporting Info'!T54","v":0}]
[null,25,{"$f":"'Reporting Info'!AB5","v":"(Grant Agreement #)"},{"$f":"'Reporting Info'!H55","v":0},{"$f":"'Reporting Info'!X55","v":"Not Answered"},{"$f":"'Reporting Info'!AA55","v":"Not Answered"},{"$f":"'Reporting Info'!AC55","v":"Not Answered"},{"$f":"'Reporting Info'!U55","v":0},{"$f":"'Reporting Info'!AD55","v":"Not Answered"},"Not Applicable","Not Applicable",{"$f":"'Reporting Info'!C55","v":0},{"$f":"'Reporting Info'!I55","v":0},{"$f":"'Reporting Info'!O55","v":0},{"$f":"'Reporting Info'!R55","v":0},"/",{"$f":"'Reporting Info'!T55","v":0}]
[null,26,{"$f":"'Reporting Info'!AB5","v":"(Grant Agreement #)"},{"$f":"'Reporting Info'!H56","v":0},{"$f":"'Reporting Info'!X56","v":"Not Answered"},{"$f":"'Reporting Info'!AA56","v":"Not Answered"},{"$f":"'Reporting Info'!AC56","v":"Not Answered"},{"$f":"'Reporting Info'!U56","v":0},{"$f":"'Reporting Info'!AD56","v":"Not Answered"},"Not Applicable","Not Applicable",{"$f":"'Reporting Info'!C56","v":0},{"$f":"'Reporting Info'!I56","v":0},{"$f":"'Reporting Info'!O56","v":0},{"$f":"'Reporting Info'!R56","v":0},"/",{"$f":"'Reporting Info'!T56","v":0}]
[null,27,{"$f":"'Reporting Info'!AB5","v":"(Grant Agreement #)"},{"$f":"'Reporting Info'!H57","v":0},{"$f":"'Reporting Info'!X57","v":"Not Answered"},{"$f":"'Reporting Info'!AA57","v":"Not Answered"},{"$f":"'Reporting Info'!AC57","v":"Not Answered"},{"$f":"'Reporting Info'!U57","v":0},{"$f":"'Reporting Info'!AD57","v":"Not Answered"},"Not Applicable","Not Applicable",{"$f":"'Reporting Info'!C57","v":0},{"$f":"'Reporting Info'!I57","v":0},{"$f":"'Reporting Info'!O57","v":0},{"$f":"'Reporting Info'!R57","v":0},"/",{"$f":"'Reporting Info'!T57","v":0}]
[null,28,{"$f":"'Reporting Info'!AB5","v":"(Grant Agreement #)"},{"$f":"'Reporting Info'!H58","v":0},{"$f":"'Reporting Info'!X58","v":"Not Answered"},{"$f":"'Reporting Info'!AA58","v":"Not Answered"},{"$f":"'Reporting Info'!AC58","v":"Not Answered"},{"$f":"'Reporting Info'!U58","v":0},{"$f":"'Reporting Info'!AD58","v":"Not Answered"},"Not Applicable","Not Applicable",{"$f":"'Reporting Info'!C58","v":0},{"$f":"'Reporting Info'!I58","v":0},{"$f":"'Reporting Info'!O58","v":0},{"$f":"'Reporting Info'!R58","v":0},"/",{"$f":"'Reporting Info'!T58","v":0}]
[null,29,{"$f":"'Reporting Info'!AB5","v":"(Grant Agreement #)"},{"$f":"'Reporting Info'!H59","v":0},{"$f":"'Reporting Info'!X59","v":"Not Answered"},{"$f":"'Reporting Info'!AA59","v":"Not Answered"},{"$f":"'Reporting Info'!AC59","v":"Not Answered"},{"$f":"'Reporting Info'!U59","v":0},{"$f":"'Reporting Info'!AD59","v":"Not Answered"},"Not Applicable","Not Applicable",{"$f":"'Reporting Info'!C59","v":0},{"$f":"'Reporting Info'!I59","v":0},{"$f":"'Reporting Info'!O59","v":0},{"$f":"'Reporting Info'!R59","v":0},"/",{"$f":"'Reporting Info'!T59","v":0}]
[null,30,{"$f":"'Reporting Info'!AB5","v":"(Grant Agreement #)"},{"$f":"'Reporting Info'!H60","v":0},{"$f":"'Reporting Info'!X60","v":"Not Answered"},{"$f":"'Reporting Info'!AA60","v":"Not Answered"},{"$f":"'Reporting Info'!AC60","v":"Not Answered"},{"$f":"'Reporting Info'!U60","v":0},{"$f":"'Reporting Info'!AD60","v":"Not Answered"},"Not Applicable","Not Applicable",{"$f":"'Reporting Info'!C60","v":0},{"$f":"'Reporting Info'!I60","v":0},{"$f":"'Reporting Info'!O60","v":0},{"$f":"'Reporting Info'!R60","v":0},"/",{"$f":"'Reporting Info'!T60","v":0}]
[]
["***** Information for   CONSTRUCTION SUBcontractors *****",1,{"$f":"'Reporting Info'!AB5","v":"(Grant Agreement #)"},{"$f":"'Reporting Info'!D102","v":0},{"$f":"'Reporting Info'!W102","v":"Not Answered"},{"$f":"'Reporting Info'!Z102","v":"Not Answered"},{"$f":"'Reporting Info'!AB102","v":"Not Answered"},{"$f":"'Reporting Info'!P102","v":0},{"$f":"'Reporting Info'!T102","v":"Not Answered"},{"$f":"'Reporting Info'!U102","v":0},{"$f":"'Reporting Info'!AC102","v":"Not Answered"},{"$f":"'Reporting Info'!C102","v":0},{"$f":"'Reporting Info'!H102","v":0},{"$f":"'Reporting Info'!I102","v":0},{"$f":"'Reporting Info'!L102","v":0},"/",{"$f":"'Reporting Info'!N102","v":0}]
[null,2,{"$f":"'Reporting Info'!AB5","v":"(Grant Agreement #)"},{"$f":"'Reporting Info'!D103","v":0},{"$f":"'Reporting Info'!W103","v":"Not Answered"},{"$f":"'Reporting Info'!Z103","v":"Not Answered"},{"$f":"'Reporting Info'!AB103","v":"Not Answered"},{"$f":"'Reporting Info'!P103","v":0},{"$f":"'Reporting Info'!T103","v":"Not Answered"},{"$f":"'Reporting Info'!U103","v":0},{"$f":"'Reporting Info'!AC103","v":"Not Answered"},{"$f":"'Reporting Info'!C103","v":0},{"$f":"'Reporting Info'!H103","v":0},{"$f":"'Reporting Info'!I103","v":0},{"$f":"'Reporting Info'!L103","v":0},"/",{"$f":"'Reporting Info'!N103","v":0}]
[null,3,{"$f":"'Reporting Info'!AB5","v":"(Grant Agreement #)"},{"$f":"'Reporting Info'!D104","v":0},{"$f":"'Reporting Info'!W104","v":"Not Answered"},{"$f":"'Reporting Info'!Z104","v":"Not Answered"},{"$f":"'Reporting Info'!AB104","v":"Not Answered"},{"$f":"'Reporting Info'!P104","v":0},{"$f":"'Reporting Info'!T104","v":"Not Answered"},{"$f":"'Reporting Info'!U104","v":0},{"$f":"'Reporting Info'!AC104","v":"Not Answered"},{"$f":"'Reporting Info'!C104","v":0},{"$f":"'Reporting Info'!H104","v":0},{"$f":"'Reporting Info'!I104","v":0},{"$f":"'Reporting Info'!L104","v":0},"/",{"$f":"'Reporting Info'!N104","v":0}]
[null,4,{"$f":"'Reporting Info'!AB5","v":"(Grant Agreement #)"},{"$f":"'Reporting Info'!D105","v":0},{"$f":"'Reporting Info'!W105","v":"Not Answered"},{"$f":"'Reporting Info'!Z105","v":"Not Answered"},{"$f":"'Reporting Info'!AB105","v":"Not Answered"},{"$f":"'Reporting Info'!P105","v":0},{"$f":"'Reporting Info'!T105","v":"Not Answered"},{"$f":"'Reporting Info'!U105","v":0},{"$f":"'Reporting Info'!AC105","v":"Not Answered"},{"$f":"'Reporting Info'!C105","v":0},{"$f":"'Reporting Info'!H105","v":0},{"$f":"'Reporting Info'!I105","v":0},{"$f":"'Reporting Info'!L105","v":0},"/",{"$f":"'Reporting Info'!N105","v":0}]
[null,5,{"$f":"'Reporting Info'!AB5","v":"(Grant Agreement #)"},{"$f":"'Reporting Info'!D106","v":0},{"$f":"'Reporting Info'!W106","v":"Not Answered"},{"$f":"'Reporting Info'!Z106","v":"Not Answered"},{"$f":"'Reporting Info'!AB106","v":"Not Answered"},{"$f":"'Reporting Info'!P106","v":0},{"$f":"'Reporting Info'!T106","v":"Not Answered"},{"$f":"'Reporting Info'!U106","v":0},{"$f":"'Reporting Info'!AC106","v":"Not Answered"},{"$f":"'Reporting Info'!C106","v":0},{"$f":"'Reporting Info'!H106","v":0},{"$f":"'Reporting Info'!I106","v":0},{"$f":"'Reporting Info'!L106","v":0},"/",{"$f":"'Reporting Info'!N106","v":0}]
[null,6,{"$f":"'Reporting Info'!AB5","v":"(Grant Agreement #)"},{"$f":"'Reporting Info'!D107","v":0},{"$f":"'Reporting Info'!W107","v":"Not Answered"},{"$f":"'Reporting Info'!Z107","v":"Not Answered"},{"$f":"'Reporting Info'!AB107","v":"Not Answered"},{"$f":"'Reporting Info'!P107","v":0},{"$f":"'Reporting Info'!T107","v":"Not Answered"},{"$f":"'Reporting Info'!U107","v":0},{"$f":"'Reporting Info'!AC107","v":"Not Answered"},{"$f":"'Reporting Info'!C107","v":0},{"$f":"'Reporting Info'!H107","v":0},{"$f":"'Reporting Info'!I107","v":0},{"$f":"'Reporting Info'!L107","v":0},"/",{"$f":"'Reporting Info'!N107","v":0}]
[null,7,{"$f":"'Reporting Info'!AB5","v":"(Grant Agreement #)"},{"$f":"'Reporting Info'!D108","v":0},{"$f":"'Reporting Info'!W108","v":"Not Answered"},{"$f":"'Reporting Info'!Z108","v":"Not Answered"},{"$f":"'Reporting Info'!AB108","v":"Not Answered"},{"$f":"'Reporting Info'!P108","v":0},{"$f":"'Reporting Info'!T108","v":"Not Answered"},{"$f":"'Reporting Info'!U108","v":0},{"$f":"'Reporting Info'!AC108","v":"Not Answered"},{"$f":"'Reporting Info'!C108","v":0},{"$f":"'Reporting Info'!H108","v":0},{"$f":"'Reporting Info'!I108","v":0},{"$f":"'Reporting Info'!L108","v":0},"/",{"$f":"'Reporting Info'!N108","v":0}]
[null,8,{"$f":"'Reporting Info'!AB5","v":"(Grant Agreement #)"},{"$f":"'Reporting Info'!D109","v":0},{"$f":"'Reporting Info'!W109","v":"Not Answered"},{"$f":"'Reporting Info'!Z109","v":"Not Answered"},{"$f":"'Reporting Info'!AB109","v":"Not Answered"},{"$f":"'Reporting Info'!P109","v":0},{"$f":"'Reporting Info'!T109","v":"Not Answered"},{"$f":"'Reporting Info'!U109","v":0},{"$f":"'Reporting Info'!AC109","v":"Not Answered"},{"$f":"'Reporting Info'!C109","v":0},{"$f":"'Reporting Info'!H109","v":0},{"$f":"'Reporting Info'!I109","v":0},{"$f":"'Reporting Info'!L109","v":0},"/",{"$f":"'Reporting Info'!N109","v":0}]
[null,9,{"$f":"'Reporting Info'!AB5","v":"(Grant Agreement #)"},{"$f":"'Reporting Info'!D110","v":0},{"$f":"'Reporting Info'!W110","v":"Not Answered"},{"$f":"'Reporting Info'!Z110","v":"Not Answered"},{"$f":"'Reporting Info'!AB110","v":"Not Answered"},{"$f":"'Reporting Info'!P110","v":0},{"$f":"'Reporting Info'!T110","v":"Not Answered"},{"$f":"'Reporting Info'!U110","v":0},{"$f":"'Reporting Info'!AC110","v":"Not Answered"},{"$f":"'Reporting Info'!C110","v":0},{"$f":"'Reporting Info'!H110","v":0},{"$f":"'Reporting Info'!I110","v":0},{"$f":"'Reporting Info'!L110","v":0},"/",{"$f":"'Reporting Info'!N110","v":0}]
[null,10,{"$f":"'Reporting Info'!AB5","v":"(Grant Agreement #)"},{"$f":"'Reporting Info'!D111","v":0},{"$f":"'Reporting Info'!W111","v":"Not Answered"},{"$f":"'Reporting Info'!Z111","v":"Not Answered"},{"$f":"'Reporting Info'!AB111","v":"Not Answered"},{"$f":"'Reporting Info'!P111","v":0},{"$f":"'Reporting Info'!T111","v":"Not Answered"},{"$f":"'Reporting Info'!U111","v":0},{"$f":"'Reporting Info'!AC111","v":"Not Answered"},{"$f":"'Reporting Info'!C111","v":0},{"$f":"'Reporting Info'!H111","v":0},{"$f":"'Reporting Info'!I111","v":0},{"$f":"'Reporting Info'!L111","v":0},"/",{"$f":"'Reporting Info'!N111","v":0}]
[null,11,{"$f":"'Reporting Info'!AB5","v":"(Grant Agreement #)"},{"$f":"'Reporting Info'!D112","v":0},{"$f":"'Reporting Info'!W112","v":"Not Answered"},{"$f":"'Reporting Info'!Z112","v":"Not Answered"},{"$f":"'Reporting Info'!AB112","v":"Not Answered"},{"$f":"'Reporting Info'!P112","v":0},{"$f":"'Reporting Info'!T112","v":"Not Answered"},{"$f":"'Reporting Info'!U112","v":0},{"$f":"'Reporting Info'!AC112","v":"Not Answered"},{"$f":"'Reporting Info'!C112","v":0},{"$f":"'Reporting Info'!H112","v":0},{"$f":"'Reporting Info'!I112","v":0},{"$f":"'Reporting Info'!L112","v":0},"/",{"$f":"'Reporting Info'!N112","v":0}]
[null,12,{"$f":"'Reporting Info'!AB5","v":"(Grant Agreement #)"},{"$f":"'Reporting Info'!D113","v":0},{"$f":"'Reporting Info'!W113","v":"Not Answered"},{"$f":"'Reporting Info'!Z113","v":"Not Answered"},{"$f":"'Reporting Info'!AB113","v":"Not Answered"},{"$f":"'Reporting Info'!P113","v":0},{"$f":"'Reporting Info'!T113","v":"Not Answered"},{"$f":"'Reporting Info'!U113","v":0},{"$f":"'Reporting Info'!AC113","v":"Not Answered"},{"$f":"'Reporting Info'!C113","v":0},{"$f":"'Reporting Info'!H113","v":0},{"$f":"'Reporting Info'!I113","v":0},{"$f":"'Reporting Info'!L113","v":0},"/",{"$f":"'Reporting Info'!N113","v":0}]
[null,13,{"$f":"'Reporting Info'!AB5","v":"(Grant Agreement #)"},{"$f":"'Reporting Info'!D114","v":0},{"$f":"'Reporting Info'!W114","v":"Not Answered"},{"$f":"'Reporting Info'!Z114","v":"Not Answered"},{"$f":"'Reporting Info'!AB114","v":"Not Answered"},{"$f":"'Reporting Info'!P114","v":0},{"$f":"'Reporting Info'!T114","v":"Not Answered"},{"$f":"'Reporting Info'!U114","v":0},{"$f":"'Reporting Info'!AC114","v":"Not Answered"},{"$f":"'Reporting Info'!C114","v":0},{"$f":"'Reporting Info'!H114","v":0},{"$f":"'Reporting Info'!I114","v":0},{"$f":"'Reporting Info'!L114","v":0},"/",{"$f":"'Reporting Info'!N114","v":0}]
[null,14,{"$f":"'Reporting Info'!AB5","v":"(Grant Agreement #)"},{"$f":"'Reporting Info'!D115","v":0},{"$f":"'Reporting Info'!W115","v":"Not Answered"},{"$f":"'Reporting Info'!Z115","v":"Not Answered"},{"$f":"'Reporting Info'!AB115","v":"Not Answered"},{"$f":"'Reporting Info'!P115","v":0},{"$f":"'Reporting Info'!T115","v":"Not Answered"},{"$f":"'Reporting Info'!U115","v":0},{"$f":"'Reporting Info'!AC115","v":"Not Answered"},{"$f":"'Reporting Info'!C115","v":0},{"$f":"'Reporting Info'!H115","v":0},{"$f":"'Reporting Info'!I115","v":0},{"$f":"'Reporting Info'!L115","v":0},"/",{"$f":"'Reporting Info'!N115","v":0}]
[null,15,{"$f":"'Reporting Info'!AB5","v":"(Grant Agreement #)"},{"$f":"'Reporting Info'!D116","v":0},{"$f":"'Reporting Info'!W116","v":"Not Answered"},{"$f":"'Reporting Info'!Z116","v":"Not Answered"},{"$f":"'Reporting Info'!AB116","v":"Not Answered"},{"$f":"'Reporting Info'!P116","v":0},{"$f":"'Reporting Info'!T116","v":"Not Answered"},{"$f":"'Reporting Info'!U116","v":0},{"$f":"'Reporting Info'!AC116","v":"Not Answered"},{"$f":"'Reporting Info'!C116","v":0},{"$f":"'Reporting Info'!H116","v":0},{"$f":"'Reporting Info'!I116","v":0},{"$f":"'Reporting Info'!L116","v":0},"/",{"$f":"'Reporting Info'!N116","v":0}]
[null,16,{"$f":"'Reporting Info'!AB5","v":"(Grant Agreement #)"},{"$f":"'Reporting Info'!D117","v":0},{"$f":"'Reporting Info'!W117","v":"Not Answered"},{"$f":"'Reporting Info'!Z117","v":"Not Answered"},{"$f":"'Reporting Info'!AB117","v":"Not Answered"},{"$f":"'Reporting Info'!P117","v":0},{"$f":"'Reporting Info'!T117","v":"Not Answered"},{"$f":"'Reporting Info'!U117","v":0},{"$f":"'Reporting Info'!AC117","v":"Not Answered"},{"$f":"'Reporting Info'!C117","v":0},{"$f":"'Reporting Info'!H117","v":0},{"$f":"'Reporting Info'!I117","v":0},{"$f":"'Reporting Info'!L117","v":0},"/",{"$f":"'Reporting Info'!N117","v":0}]
[null,17,{"$f":"'Reporting Info'!AB5","v":"(Grant Agreement #)"},{"$f":"'Reporting Info'!D118","v":0},{"$f":"'Reporting Info'!W118","v":"Not Answered"},{"$f":"'Reporting Info'!Z118","v":"Not Answered"},{"$f":"'Reporting Info'!AB118","v":"Not Answered"},{"$f":"'Reporting Info'!P118","v":0},{"$f":"'Reporting Info'!T118","v":"Not Answered"},{"$f":"'Reporting Info'!U118","v":0},{"$f":"'Reporting Info'!AC118","v":"Not Answered"},{"$f":"'Reporting Info'!C118","v":0},{"$f":"'Reporting Info'!H118","v":0},{"$f":"'Reporting Info'!I118","v":0},{"$f":"'Reporting Info'!L118","v":0},"/",{"$f":"'Reporting Info'!N118","v":0}]
[null,18,{"$f":"'Reporting Info'!AB5","v":"(Grant Agreement #)"},{"$f":"'Reporting Info'!D119","v":0},{"$f":"'Reporting Info'!W119","v":"Not Answered"},{"$f":"'Reporting Info'!Z119","v":"Not Answered"},{"$f":"'Reporting Info'!AB119","v":"Not Answered"},{"$f":"'Reporting Info'!P119","v":0},{"$f":"'Reporting Info'!T119","v":"Not Answered"},{"$f":"'Reporting Info'!U119","v":0},{"$f":"'Reporting Info'!AC119","v":"Not Answered"},{"$f":"'Reporting Info'!C119","v":0},{"$f":"'Reporting Info'!H119","v":0},{"$f":"'Reporting Info'!I119","v":0},{"$f":"'Reporting Info'!L119","v":0},"/",{"$f":"'Reporting Info'!N119","v":0}]
[null,19,{"$f":"'Reporting Info'!AB5","v":"(Grant Agreement #)"},{"$f":"'Reporting Info'!D120","v":0},{"$f":"'Reporting Info'!W120","v":"Not Answered"},{"$f":"'Reporting Info'!Z120","v":"Not Answered"},{"$f":"'Reporting Info'!AB120","v":"Not Answered"},{"$f":"'Reporting Info'!P120","v":0},{"$f":"'Reporting Info'!T120","v":"Not Answered"},{"$f":"'Reporting Info'!U120","v":0},{"$f":"'Reporting Info'!AC120","v":"Not Answered"},{"$f":"'Reporting Info'!C120","v":0},{"$f":"'Reporting Info'!H120","v":0},{"$f":"'Reporting Info'!I120","v":0},{"$f":"'Reporting Info'!L120","v":0},"/",{"$f":"'Reporting Info'!N120","v":0}]
[null,20,{"$f":"'Reporting Info'!AB5","v":"(Grant Agreement #)"},{"$f":"'Reporting Info'!D121","v":0},{"$f":"'Reporting Info'!W121","v":"Not Answered"},{"$f":"'Reporting Info'!Z121","v":"Not Answered"},{"$f":"'Reporting Info'!AB121","v":"Not Answered"},{"$f":"'Reporting Info'!P121","v":0},{"$f":"'Reporting Info'!T121","v":"Not Answered"},{"$f":"'Reporting Info'!U121","v":0},{"$f":"'Reporting Info'!AC121","v":"Not Answered"},{"$f":"'Reporting Info'!C121","v":0},{"$f":"'Reporting Info'!H121","v":0},{"$f":"'Reporting Info'!I121","v":0},{"$f":"'Reporting Info'!L121","v":0},"/",{"$f":"'Reporting Info'!N121","v":0}]
[null,21,{"$f":"'Reporting Info'!AB5","v":"(Grant Agreement #)"},{"$f":"'Reporting Info'!D122","v":0},{"$f":"'Reporting Info'!W122","v":"Not Answered"},{"$f":"'Reporting Info'!Z122","v":"Not Answered"},{"$f":"'Reporting Info'!AB122","v":"Not Answered"},{"$f":"'Reporting Info'!P122","v":0},{"$f":"'Reporting Info'!T122","v":"Not Answered"},{"$f":"'Reporting Info'!U122","v":0},{"$f":"'Reporting Info'!AC122","v":"Not Answered"},{"$f":"'Reporting Info'!C122","v":0},{"$f":"'Reporting Info'!H122","v":0},{"$f":"'Reporting Info'!I122","v":0},{"$f":"'Reporting Info'!L122","v":0},"/",{"$f":"'Reporting Info'!N122","v":0}]
[null,22,{"$f":"'Reporting Info'!AB5","v":"(Grant Agreement #)"},{"$f":"'Reporting Info'!D123","v":0},{"$f":"'Reporting Info'!W123","v":"Not Answered"},{"$f":"'Reporting Info'!Z123","v":"Not Answered"},{"$f":"'Reporting Info'!AB123","v":"Not Answered"},{"$f":"'Reporting Info'!P123","v":0},{"$f":"'Reporting Info'!T123","v":"Not Answered"},{"$f":"'Reporting Info'!U123","v":0},{"$f":"'Reporting Info'!AC123","v":"Not Answered"},{"$f":"'Reporting Info'!C123","v":0},{"$f":"'Reporting Info'!H123","v":0},{"$f":"'Reporting Info'!I123","v":0},{"$f":"'Reporting Info'!L123","v":0},"/",{"$f":"'Reporting Info'!N123","v":0}]
[null,23,{"$f":"'Reporting Info'!AB5","v":"(Grant Agreement #)"},{"$f":"'Reporting Info'!D124","v":0},{"$f":"'Reporting Info'!W124","v":"Not Answered"},{"$f":"'Reporting Info'!Z124","v":"Not Answered"},{"$f":"'Reporting Info'!AB124","v":"Not Answered"},{"$f":"'Reporting Info'!P124","v":0},{"$f":"'Reporting Info'!T124","v":"Not Answered"},{"$f":"'Reporting Info'!U124","v":0},{"$f":"'Reporting Info'!AC124","v":"Not Answered"},{"$f":"'Reporting Info'!C124","v":0},{"$f":"'Reporting Info'!H124","v":0},{"$f":"'Reporting Info'!I124","v":0},{"$f":"'Reporting Info'!L124","v":0},"/",{"$f":"'Reporting Info'!N124","v":0}]
[null,24,{"$f":"'Reporting Info'!AB5","v":"(Grant Agreement #)"},{"$f":"'Reporting Info'!D125","v":0},{"$f":"'Reporting Info'!W125","v":"Not Answered"},{"$f":"'Reporting Info'!Z125","v":"Not Answered"},{"$f":"'Reporting Info'!AB125","v":"Not Answered"},{"$f":"'Reporting Info'!P125","v":0},{"$f":"'Reporting Info'!T125","v":"Not Answered"},{"$f":"'Reporting Info'!U125","v":0},{"$f":"'Reporting Info'!AC125","v":"Not Answered"},{"$f":"'Reporting Info'!C125","v":0},{"$f":"'Reporting Info'!H125","v":0},{"$f":"'Reporting Info'!I125","v":0},{"$f":"'Reporting Info'!L125","v":0},"/",{"$f":"'Reporting Info'!N125","v":0}]
[null,25,{"$f":"'Reporting Info'!AB5","v":"(Grant Agreement #)"},{"$f":"'Reporting Info'!D126","v":0},{"$f":"'Reporting Info'!W126","v":"Not Answered"},{"$f":"'Reporting Info'!Z126","v":"Not Answered"},{"$f":"'Reporting Info'!AB126","v":"Not Answered"},{"$f":"'Reporting Info'!P126","v":0},{"$f":"'Reporting Info'!T126","v":"Not Answered"},{"$f":"'Reporting Info'!U126","v":0},{"$f":"'Reporting Info'!AC126","v":"Not Answered"},{"$f":"'Reporting Info'!C126","v":0},{"$f":"'Reporting Info'!H126","v":0},{"$f":"'Reporting Info'!I126","v":0},{"$f":"'Reporting Info'!L126","v":0},"/",{"$f":"'Reporting Info'!N126","v":0}]
[null,26,{"$f":"'Reporting Info'!AB5","v":"(Grant Agreement #)"},{"$f":"'Reporting Info'!D127","v":0},{"$f":"'Reporting Info'!W127","v":"Not Answered"},{"$f":"'Reporting Info'!Z127","v":"Not Answered"},{"$f":"'Reporting Info'!AB127","v":"Not Answered"},{"$f":"'Reporting Info'!P127","v":0},{"$f":"'Reporting Info'!T127","v":"Not Answered"},{"$f":"'Reporting Info'!U127","v":0},{"$f":"'Reporting Info'!AC127","v":"Not Answered"},{"$f":"'Reporting Info'!C127","v":0},{"$f":"'Reporting Info'!H127","v":0},{"$f":"'Reporting Info'!I127","v":0},{"$f":"'Reporting Info'!L127","v":0},"/",{"$f":"'Reporting Info'!N127","v":0}]
[null,27,{"$f":"'Reporting Info'!AB5","v":"(Grant Agreement #)"},{"$f":"'Reporting Info'!D128","v":0},{"$f":"'Reporting Info'!W128","v":"Not Answered"},{"$f":"'Reporting Info'!Z128","v":"Not Answered"},{"$f":"'Reporting Info'!AB128","v":"Not Answered"},{"$f":"'Reporting Info'!P128","v":0},{"$f":"'Reporting Info'!T128","v":"Not Answered"},{"$f":"'Reporting Info'!U128","v":0},{"$f":"'Reporting Info'!AC128","v":"Not Answered"},{"$f":"'Reporting Info'!C128","v":0},{"$f":"'Reporting Info'!H128","v":0},{"$f":"'Reporting Info'!I128","v":0},{"$f":"'Reporting Info'!L128","v":0},"/",{"$f":"'Reporting Info'!N128","v":0}]
[null,28,{"$f":"'Reporting Info'!AB5","v":"(Grant Agreement #)"},{"$f":"'Reporting Info'!D129","v":0},{"$f":"'Reporting Info'!W129","v":"Not Answered"},{"$f":"'Reporting Info'!Z129","v":"Not Answered"},{"$f":"'Reporting Info'!AB129","v":"Not Answered"},{"$f":"'Reporting Info'!P129","v":0},{"$f":"'Reporting Info'!T129","v":"Not Answered"},{"$f":"'Reporting Info'!U129","v":0},{"$f":"'Reporting Info'!AC129","v":"Not Answered"},{"$f":"'Reporting Info'!C129","v":0},{"$f":"'Reporting Info'!H129","v":0},{"$f":"'Reporting Info'!I129","v":0},{"$f":"'Reporting Info'!L129","v":0},"/",{"$f":"'Reporting Info'!N129","v":0}]
[null,29,{"$f":"'Reporting Info'!AB5","v":"(Grant Agreement #)"},{"$f":"'Reporting Info'!D130","v":0},{"$f":"'Reporting Info'!W130","v":"Not Answered"},{"$f":"'Reporting Info'!Z130","v":"Not Answered"},{"$f":"'Reporting Info'!AB130","v":"Not Answered"},{"$f":"'Reporting Info'!P130","v":0},{"$f":"'Reporting Info'!T130","v":"Not Answered"},{"$f":"'Reporting Info'!U130","v":0},{"$f":"'Reporting Info'!AC130","v":"Not Answered"},{"$f":"'Reporting Info'!C130","v":0},{"$f":"'Reporting Info'!H130","v":0},{"$f":"'Reporting Info'!I130","v":0},{"$f":"'Reporting Info'!L130","v":0},"/",{"$f":"'Reporting Info'!N130","v":0}]
[null,30,{"$f":"'Reporting Info'!AB5","v":"(Grant Agreement #)"},{"$f":"'Reporting Info'!D131","v":0},{"$f":"'Reporting Info'!W131","v":"Not Answered"},{"$f":"'Reporting Info'!Z131","v":"Not Answered"},{"$f":"'Reporting Info'!AB131","v":"Not Answered"},{"$f":"'Reporting Info'!P131","v":0},{"$f":"'Reporting Info'!T131","v":"Not Answered"},{"$f":"'Reporting Info'!U131","v":0},{"$f":"'Reporting Info'!AC131","v":"Not Answered"},{"$f":"'Reporting Info'!C131","v":0},{"$f":"'Reporting Info'!H131","v":0},{"$f":"'Reporting Info'!I131","v":0},{"$f":"'Reporting Info'!L131","v":0},"/",{"$f":"'Reporting Info'!N131","v":0}]
[]
["Information  for  NON-CONSTRUCTION PRIME   Contractors",1,{"$f":"'Reporting Info'!AB5","v":"(Grant Agreement #)"},{"$f":"'Reporting Info'!H139","v":0},{"$f":"'Reporting Info'!X139","v":"Not Answered"},{"$f":"'Reporting Info'!AA139","v":"Not Answered"},{"$f":"'Reporting Info'!AC139","v":"Not Answered"},{"$f":"'Reporting Info'!U139","v":0},{"$f":"'Reporting Info'!AD139","v":"Not Answered"},"Not Applicable","Not Applicable",{"$f":"'Reporting Info'!C139","v":0},{"$f":"'Reporting Info'!I139","v":0},{"$f":"'Reporting Info'!O139","v":0},{"$f":"'Reporting Info'!R139","v":0},"/",{"$f":"'Reporting Info'!T139","v":0}]
[null,2,{"$f":"'Reporting Info'!AB5","v":"(Grant Agreement #)"},{"$f":"'Reporting Info'!H140","v":0},{"$f":"'Reporting Info'!X140","v":"Not Answered"},{"$f":"'Reporting Info'!AA140","v":"Not Answered"},{"$f":"'Reporting Info'!AC140","v":"Not Answered"},{"$f":"'Reporting Info'!U140","v":0},{"$f":"'Reporting Info'!AD140","v":"Not Answered"},"Not Applicable","Not Applicable",{"$f":"'Reporting Info'!C140","v":0},{"$f":"'Reporting Info'!I140","v":0},{"$f":"'Reporting Info'!O140","v":0},{"$f":"'Reporting Info'!R140","v":0},"/",{"$f":"'Reporting Info'!T140","v":0}]
[null,3,{"$f":"'Reporting Info'!AB5","v":"(Grant Agreement #)"},{"$f":"'Reporting Info'!H141","v":0},{"$f":"'Reporting Info'!X141","v":"Not Answered"},{"$f":"'Reporting Info'!AA141","v":"Not Answered"},{"$f":"'Reporting Info'!AC141","v":"Not Answered"},{"$f":"'Reporting Info'!U141","v":0},{"$f":"'Reporting Info'!AD141","v":"Not Answered"},"Not Applicable","Not Applicable",{"$f":"'Reporting Info'!C141","v":0},{"$f":"'Reporting Info'!I141","v":0},{"$f":"'Reporting Info'!O141","v":0},{"$f":"'Reporting Info'!R141","v":0},"/",{"$f":"'Reporting Info'!T141","v":0}]
[null,4,{"$f":"'Reporting Info'!AB5","v":"(Grant Agreement #)"},{"$f":"'Reporting Info'!H142","v":0},{"$f":"'Reporting Info'!X142","v":"Not Answered"},{"$f":"'Reporting Info'!AA142","v":"Not Answered"},{"$f":"'Reporting Info'!AC142","v":"Not Answered"},{"$f":"'Reporting Info'!U142","v":0},{"$f":"'Reporting Info'!AD142","v":"Not Answered"},"Not Applicable","Not Applicable",{"$f":"'Reporting Info'!C142","v":0},{"$f":"'Reporting Info'!I142","v":0},{"$f":"'Reporting Info'!O142","v":0},{"$f":"'Reporting Info'!R142","v":0},"/",{"$f":"'Reporting Info'!T142","v":0}]
[null,5,{"$f":"'Reporting Info'!AB5","v":"(Grant Agreement #)"},{"$f":"'Reporting Info'!H143","v":0},{"$f":"'Reporting Info'!X143","v":"Not Answered"},{"$f":"'Reporting Info'!AA143","v":"Not Answered"},{"$f":"'Reporting Info'!AC143","v":"Not Answered"},{"$f":"'Reporting Info'!U143","v":0},{"$f":"'Reporting Info'!AD143","v":"Not Answered"},"Not Applicable","Not Applicable",{"$f":"'Reporting Info'!C143","v":0},{"$f":"'Reporting Info'!I143","v":0},{"$f":"'Reporting Info'!O143","v":0},{"$f":"'Reporting Info'!R143","v":0},"/",{"$f":"'Reporting Info'!T143","v":0}]
[null,6,{"$f":"'Reporting Info'!AB5","v":"(Grant Agreement #)"},{"$f":"'Reporting Info'!H144","v":0},{"$f":"'Reporting Info'!X144","v":"Not Answered"},{"$f":"'Reporting Info'!AA144","v":"Not Answered"},{"$f":"'Reporting Info'!AC144","v":"Not Answered"},{"$f":"'Reporting Info'!U144","v":0},{"$f":"'Reporting Info'!AD144","v":"Not Answered"},"Not Applicable","Not Applicable",{"$f":"'Reporting Info'!C144","v":0},{"$f":"'Reporting Info'!I144","v":0},{"$f":"'Reporting Info'!O144","v":0},{"$f":"'Reporting Info'!R144","v":0},"/",{"$f":"'Reporting Info'!T144","v":0}]
[null,7,{"$f":"'Reporting Info'!AB5","v":"(Grant Agreement #)"},{"$f":"'Reporting Info'!H145","v":0},{"$f":"'Reporting Info'!X145","v":"Not Answered"},{"$f":"'Reporting Info'!AA145","v":"Not Answered"},{"$f":"'Reporting Info'!AC145","v":"Not Answered"},{"$f":"'Reporting Info'!U145","v":0},{"$f":"'Reporting Info'!AD145","v":"Not Answered"},"Not Applicable","Not Applicable",{"$f":"'Reporting Info'!C145","v":0},{"$f":"'Reporting Info'!I145","v":0},{"$f":"'Reporting Info'!O145","v":0},{"$f":"'Reporting Info'!R145","v":0},"/",{"$f":"'Reporting Info'!T145","v":0}]
[null,8,{"$f":"'Reporting Info'!AB5","v":"(Grant Agreement #)"},{"$f":"'Reporting Info'!H146","v":0},{"$f":"'Reporting Info'!X146","v":"Not Answered"},{"$f":"'Reporting Info'!AA146","v":"Not Answered"},{"$f":"'Reporting Info'!AC146","v":"Not Answered"},{"$f":"'Reporting Info'!U146","v":0},{"$f":"'Reporting Info'!AD146","v":"Not Answered"},"Not Applicable","Not Applicable",{"$f":"'Reporting Info'!C146","v":0},{"$f":"'Reporting Info'!I146","v":0},{"$f":"'Reporting Info'!O146","v":0},{"$f":"'Reporting Info'!R146","v":0},"/",{"$f":"'Reporting Info'!T146","v":0}]
[null,9,{"$f":"'Reporting Info'!AB5","v":"(Grant Agreement #)"},{"$f":"'Reporting Info'!H147","v":0},{"$f":"'Reporting Info'!X147","v":"Not Answered"},{"$f":"'Reporting Info'!AA147","v":"Not Answered"},{"$f":"'Reporting Info'!AC147","v":"Not Answered"},{"$f":"'Reporting Info'!U147","v":0},{"$f":"'Reporting Info'!AD147","v":"Not Answered"},"Not Applicable","Not Applicable",{"$f":"'Reporting Info'!C147","v":0},{"$f":"'Reporting Info'!I147","v":0},{"$f":"'Reporting Info'!O147","v":0},{"$f":"'Reporting Info'!R147","v":0},"/",{"$f":"'Reporting Info'!T147","v":0}]
[null,10,{"$f":"'Reporting Info'!AB5","v":"(Grant Agreement #)"},{"$f":"'Reporting Info'!H148","v":0},{"$f":"'Reporting Info'!X148","v":"Not Answered"},{"$f":"'Reporting Info'!AA148","v":"Not Answered"},{"$f":"'Reporting Info'!AC148","v":"Not Answered"},{"$f":"'Reporting Info'!U148","v":0},{"$f":"'Reporting Info'!AD148","v":"Not Answered"},"Not Applicable","Not Applicable",{"$f":"'Reporting Info'!C148","v":0},{"$f":"'Reporting Info'!I148","v":0},{"$f":"'Reporting Info'!O148","v":0},{"$f":"'Reporting Info'!R148","v":0},"/",{"$f":"'Reporting Info'!T148","v":0}]
[null,11,{"$f":"'Reporting Info'!AB5","v":"(Grant Agreement #)"},{"$f":"'Reporting Info'!H149","v":0},{"$f":"'Reporting Info'!X149","v":"Not Answered"},{"$f":"'Reporting Info'!AA149","v":"Not Answered"},{"$f":"'Reporting Info'!AC149","v":"Not Answered"},{"$f":"'Reporting Info'!U149","v":0},{"$f":"'Reporting Info'!AD149","v":"Not Answered"},"Not Applicable","Not Applicable",{"$f":"'Reporting Info'!C149","v":0},{"$f":"'Reporting Info'!I149","v":0},{"$f":"'Reporting Info'!O149","v":0},{"$f":"'Reporting Info'!R149","v":0},"/",{"$f":"'Reporting Info'!T149","v":0}]
[null,12,{"$f":"'Reporting Info'!AB5","v":"(Grant Agreement #)"},{"$f":"'Reporting Info'!H150","v":0},{"$f":"'Reporting Info'!X150","v":"Not Answered"},{"$f":"'Reporting Info'!AA150","v":"Not Answered"},{"$f":"'Reporting Info'!AC150","v":"Not Answered"},{"$f":"'Reporting Info'!U150","v":0},{"$f":"'Reporting Info'!AD150","v":"Not Answered"},"Not Applicable","Not Applicable",{"$f":"'Reporting Info'!C150","v":0},{"$f":"'Reporting Info'!I150","v":0},{"$f":"'Reporting Info'!O150","v":0},{"$f":"'Reporting Info'!R150","v":0},"/",{"$f":"'Reporting Info'!T150","v":0}]
[null,13,{"$f":"'Reporting Info'!AB5","v":"(Grant Agreement #)"},{"$f":"'Reporting Info'!H151","v":0},{"$f":"'Reporting Info'!X151","v":"Not Answered"},{"$f":"'Reporting Info'!AA151","v":"Not Answered"},{"$f":"'Reporting Info'!AC151","v":"Not Answered"},{"$f":"'Reporting Info'!U151","v":0},{"$f":"'Reporting Info'!AD151","v":"Not Answered"},"Not Applicable","Not Applicable",{"$f":"'Reporting Info'!C151","v":0},{"$f":"'Reporting Info'!I151","v":0},{"$f":"'Reporting Info'!O151","v":0},{"$f":"'Reporting Info'!R151","v":0},"/",{"$f":"'Reporting Info'!T151","v":0}]
[null,14,{"$f":"'Reporting Info'!AB5","v":"(Grant Agreement #)"},{"$f":"'Reporting Info'!H152","v":0},{"$f":"'Reporting Info'!X152","v":"Not Answered"},{"$f":"'Reporting Info'!AA152","v":"Not Answered"},{"$f":"'Reporting Info'!AC152","v":"Not Answered"},{"$f":"'Reporting Info'!U152","v":0},{"$f":"'Reporting Info'!AD152","v":"Not Answered"},"Not Applicable","Not Applicable",{"$f":"'Reporting Info'!C152","v":0},{"$f":"'Reporting Info'!I152","v":0},{"$f":"'Reporting Info'!O152","v":0},{"$f":"'Reporting Info'!R152","v":0},"/",{"$f":"'Reporting Info'!T152","v":0}]
[null,15,{"$f":"'Reporting Info'!AB5","v":"(Grant Agreement #)"},{"$f":"'Reporting Info'!H153","v":0},{"$f":"'Reporting Info'!X153","v":"Not Answered"},{"$f":"'Reporting Info'!AA153","v":"Not Answered"},{"$f":"'Reporting Info'!AC153","v":"Not Answered"},{"$f":"'Reporting Info'!U153","v":0},{"$f":"'Reporting Info'!AD153","v":"Not Answered"},"Not Applicable","Not Applicable",{"$f":"'Reporting Info'!C153","v":0},{"$f":"'Reporting Info'!I153","v":0},{"$f":"'Reporting Info'!O153","v":0},{"$f":"'Reporting Info'!R153","v":0},"/",{"$f":"'Reporting Info'!T153","v":0}]
[]
["Information for   NON-CONSTRUCTION SUBcontractors",1,{"$f":"'Reporting Info'!AB5","v":"(Grant Agreement #)"},{"$f":"'Reporting Info'!D160","v":0},{"$f":"'Reporting Info'!AA160","v":"Not Answered"},{"$f":"'Reporting Info'!AB160","v":"Not Answered"},{"$f":"'Reporting Info'!AC160","v":"Not Answered"},{"$f":"'Reporting Info'!R160","v":0},{"$f":"'Reporting Info'!U160","v":"Not Answered"},{"$f":"'Reporting Info'!V160","v":0},{"$f":"'Reporting Info'!AD160","v":"Not Answered"},{"$f":"'Reporting Info'!C160","v":0},{"$f":"'Reporting Info'!H160","v":0},{"$f":"'Reporting Info'!K160","v":0},{"$f":"'Reporting Info'!O160","v":0},"/",{"$f":"'Reporting Info'!Q160","v":0}]
[null,2,{"$f":"'Reporting Info'!AB5","v":"(Grant Agreement #)"},{"$f":"'Reporting Info'!D161","v":0},{"$f":"'Reporting Info'!AA161","v":"Not Answered"},{"$f":"'Reporting Info'!AB161","v":"Not Answered"},{"$f":"'Reporting Info'!AC161","v":"Not Answered"},{"$f":"'Reporting Info'!R161","v":0},{"$f":"'Reporting Info'!U161","v":"Not Answered"},{"$f":"'Reporting Info'!V161","v":0},{"$f":"'Reporting Info'!AD161","v":"Not Answered"},{"$f":"'Reporting Info'!C161","v":0},{"$f":"'Reporting Info'!H161","v":0},{"$f":"'Reporting Info'!K161","v":0},{"$f":"'Reporting Info'!O161","v":0},"/",{"$f":"'Reporting Info'!Q161","v":0}]
[null,3,{"$f":"'Reporting Info'!AB5","v":"(Grant Agreement #)"},{"$f":"'Reporting Info'!D162","v":0},{"$f":"'Reporting Info'!AA162","v":"Not Answered"},{"$f":"'Reporting Info'!AB162","v":"Not Answered"},{"$f":"'Reporting Info'!AC162","v":"Not Answered"},{"$f":"'Reporting Info'!R162","v":0},{"$f":"'Reporting Info'!U162","v":"Not Answered"},{"$f":"'Reporting Info'!V162","v":0},{"$f":"'Reporting Info'!AD162","v":"Not Answered"},{"$f":"'Reporting Info'!C162","v":0},{"$f":"'Reporting Info'!H162","v":0},{"$f":"'Reporting Info'!K162","v":0},{"$f":"'Reporting Info'!O162","v":0},"/",{"$f":"'Reporting Info'!Q162","v":0}]
[null,4,{"$f":"'Reporting Info'!AB5","v":"(Grant Agreement #)"},{"$f":"'Reporting Info'!D163","v":0},{"$f":"'Reporting Info'!AA163","v":"Not Answered"},{"$f":"'Reporting Info'!AB163","v":"Not Answered"},{"$f":"'Reporting Info'!AC163","v":"Not Answered"},{"$f":"'Reporting Info'!R163","v":0},{"$f":"'Reporting Info'!U163","v":"Not Answered"},{"$f":"'Reporting Info'!V163","v":0},{"$f":"'Reporting Info'!AD163","v":"Not Answered"},{"$f":"'Reporting Info'!C163","v":0},{"$f":"'Reporting Info'!H163","v":0},{"$f":"'Reporting Info'!K163","v":0},{"$f":"'Reporting Info'!O163","v":0},"/",{"$f":"'Reporting Info'!Q163","v":0}]
[null,5,{"$f":"'Reporting Info'!AB5","v":"(Grant Agreement #)"},{"$f":"'Reporting Info'!D164","v":0},{"$f":"'Reporting Info'!AA164","v":"Not Answered"},{"$f":"'Reporting Info'!AB164","v":"Not Answered"},{"$f":"'Reporting Info'!AC164","v":"Not Answered"},{"$f":"'Reporting Info'!R164","v":0},{"$f":"'Reporting Info'!U164","v":"Not Answered"},{"$f":"'Reporting Info'!V164","v":0},{"$f":"'Reporting Info'!AD164","v":"Not Answered"},{"$f":"'Reporting Info'!C164","v":0},{"$f":"'Reporting Info'!H164","v":0},{"$f":"'Reporting Info'!K164","v":0},{"$f":"'Reporting Info'!O164","v":0},"/",{"$f":"'Reporting Info'!Q164","v":0}]
[null,6,{"$f":"'Reporting Info'!AB5","v":"(Grant Agreement #)"},{"$f":"'Reporting Info'!D165","v":0},{"$f":"'Reporting Info'!AA165","v":"Not Answered"},{"$f":"'Reporting Info'!AB165","v":"Not Answered"},{"$f":"'Reporting Info'!AC165","v":"Not Answered"},{"$f":"'Reporting Info'!R165","v":0},{"$f":"'Reporting Info'!U165","v":"Not Answered"},{"$f":"'Reporting Info'!V165","v":0},{"$f":"'Reporting Info'!AD165","v":"Not Answered"},{"$f":"'Reporting Info'!C165","v":0},{"$f":"'Reporting Info'!H165","v":0},{"$f":"'Reporting Info'!K165","v":0},{"$f":"'Reporting Info'!O165","v":0},"/",{"$f":"'Reporting Info'!Q165","v":0}]
[null,7,{"$f":"'Reporting Info'!AB5","v":"(Grant Agreement #)"},{"$f":"'Reporting Info'!D166","v":0},{"$f":"'Reporting Info'!AA166","v":"Not Answered"},{"$f":"'Reporting Info'!AB166","v":"Not Answered"},{"$f":"'Reporting Info'!AC166","v":"Not Answered"},{"$f":"'Reporting Info'!R166","v":0},{"$f":"'Reporting Info'!U166","v":"Not Answered"},{"$f":"'Reporting Info'!V166","v":0},{"$f":"'Reporting Info'!AD166","v":"Not Answered"},{"$f":"'Reporting Info'!C166","v":0},{"$f":"'Reporting Info'!H166","v":0},{"$f":"'Reporting Info'!K166","v":0},{"$f":"'Reporting Info'!O166","v":0},"/",{"$f":"'Reporting Info'!Q166","v":0}]
[null,8,{"$f":"'Reporting Info'!AB5","v":"(Grant Agreement #)"},{"$f":"'Reporting Info'!D167","v":0},{"$f":"'Reporting Info'!AA167","v":"Not Answered"},{"$f":"'Reporting Info'!AB167","v":"Not Answered"},{"$f":"'Reporting Info'!AC167","v":"Not Answered"},{"$f":"'Reporting Info'!R167","v":0},{"$f":"'Reporting Info'!U167","v":"Not Answered"},{"$f":"'Reporting Info'!V167","v":0},{"$f":"'Reporting Info'!AD167","v":"Not Answered"},{"$f":"'Reporting Info'!C167","v":0},{"$f":"'Reporting Info'!H167","v":0},{"$f":"'Reporting Info'!K167","v":0},{"$f":"'Reporting Info'!O167","v":0},"/",{"$f":"'Reporting Info'!Q167","v":0}]
[null,9,{"$f":"'Reporting Info'!AB5","v":"(Grant Agreement #)"},{"$f":"'Reporting Info'!D168","v":0},{"$f":"'Reporting Info'!AA168","v":"Not Answered"},{"$f":"'Reporting Info'!AB168","v":"Not Answered"},{"$f":"'Reporting Info'!AC168","v":"Not Answered"},{"$f":"'Reporting Info'!R168","v":0},{"$f":"'Reporting Info'!U168","v":"Not Answered"},{"$f":"'Reporting Info'!V168","v":0},{"$f":"'Reporting Info'!AD168","v":"Not Answered"},{"$f":"'Reporting Info'!C168","v":0},{"$f":"'Reporting Info'!H168","v":0},{"$f":"'Reporting Info'!K168","v":0},{"$f":"'Reporting Info'!O168","v":0},"/",{"$f":"'Reporting Info'!Q168","v":0}]
[null,10,{"$f":"'Reporting Info'!AB5","v":"(Grant Agreement #)"},{"$f":"'Reporting Info'!D169","v":0},{"$f":"'Reporting Info'!AA169","v":"Not Answered"},{"$f":"'Reporting Info'!AB169","v":"Not Answered"},{"$f":"'Reporting Info'!AC169","v":"Not Answered"},{"$f":"'Reporting Info'!R169","v":0},{"$f":"'Reporting Info'!U169","v":"Not Answered"},{"$f":"'Reporting Info'!V169","v":0},{"$f":"'Reporting Info'!AD169","v":"Not Answered"},{"$f":"'Reporting Info'!C169","v":0},{"$f":"'Reporting Info'!H169","v":0},{"$f":"'Reporting Info'!K169","v":0},{"$f":"'Reporting Info'!O169","v":0},"/",{"$f":"'Reporting Info'!Q169","v":0}]
[null,11,{"$f":"'Reporting Info'!AB5","v":"(Grant Agreement #)"},{"$f":"'Reporting Info'!D170","v":0},{"$f":"'Reporting Info'!AA170","v":"Not Answered"},{"$f":"'Reporting Info'!AB170","v":"Not Answered"},{"$f":"'Reporting Info'!AC170","v":"Not Answered"},{"$f":"'Reporting Info'!R170","v":0},{"$f":"'Reporting Info'!U170","v":"Not Answered"},{"$f":"'Reporting Info'!V170","v":0},{"$f":"'Reporting Info'!AD170","v":"Not Answered"},{"$f":"'Reporting Info'!C170","v":0},{"$f":"'Reporting Info'!H170","v":0},{"$f":"'Reporting Info'!K170","v":0},{"$f":"'Reporting Info'!O170","v":0},"/",{"$f":"'Reporting Info'!Q170","v":0}]
[null,12,{"$f":"'Reporting Info'!AB5","v":"(Grant Agreement #)"},{"$f":"'Reporting Info'!D171","v":0},{"$f":"'Reporting Info'!AA171","v":"Not Answered"},{"$f":"'Reporting Info'!AB171","v":"Not Answered"},{"$f":"'Reporting Info'!AC171","v":"Not Answered"},{"$f":"'Reporting Info'!R171","v":0},{"$f":"'Reporting Info'!U171","v":"Not Answered"},{"$f":"'Reporting Info'!V171","v":0},{"$f":"'Reporting Info'!AD171","v":"Not Answered"},{"$f":"'Reporting Info'!C171","v":0},{"$f":"'Reporting Info'!H171","v":0},{"$f":"'Reporting Info'!K171","v":0},{"$f":"'Reporting Info'!O171","v":0},"/",{"$f":"'Reporting Info'!Q171","v":0}]
[null,13,{"$f":"'Reporting Info'!AB5","v":"(Grant Agreement #)"},{"$f":"'Reporting Info'!D172","v":0},{"$f":"'Reporting Info'!AA172","v":"Not Answered"},{"$f":"'Reporting Info'!AB172","v":"Not Answered"},{"$f":"'Reporting Info'!AC172","v":"Not Answered"},{"$f":"'Reporting Info'!R172","v":0},{"$f":"'Reporting Info'!U172","v":"Not Answered"},{"$f":"'Reporting Info'!V172","v":0},{"$f":"'Reporting Info'!AD172","v":"Not Answered"},{"$f":"'Reporting Info'!C172","v":0},{"$f":"'Reporting Info'!H172","v":0},{"$f":"'Reporting Info'!K172","v":0},{"$f":"'Reporting Info'!O172","v":0},"/",{"$f":"'Reporting Info'!Q172","v":0}]
[null,14,{"$f":"'Reporting Info'!AB5","v":"(Grant Agreement #)"},{"$f":"'Reporting Info'!D173","v":0},{"$f":"'Reporting Info'!AA173","v":"Not Answered"},{"$f":"'Reporting Info'!AB173","v":"Not Answered"},{"$f":"'Reporting Info'!AC173","v":"Not Answered"},{"$f":"'Reporting Info'!R173","v":0},{"$f":"'Reporting Info'!U173","v":"Not Answered"},{"$f":"'Reporting Info'!V173","v":0},{"$f":"'Reporting Info'!AD173","v":"Not Answered"},{"$f":"'Reporting Info'!C173","v":0},{"$f":"'Reporting Info'!H173","v":0},{"$f":"'Reporting Info'!K173","v":0},{"$f":"'Reporting Info'!O173","v":0},"/",{"$f":"'Reporting Info'!Q173","v":0}]
[null,15,{"$f":"'Reporting Info'!AB5","v":"(Grant Agreement #)"},{"$f":"'Reporting Info'!D174","v":0},{"$f":"'Reporting Info'!AA174","v":"Not Answered"},{"$f":"'Reporting Info'!AB174","v":"Not Answered"},{"$f":"'Reporting Info'!AC174","v":"Not Answered"},{"$f":"'Reporting Info'!R174","v":0},{"$f":"'Reporting Info'!U174","v":"Not Answered"},{"$f":"'Reporting Info'!V174","v":0},{"$f":"'Reporting Info'!AD174","v":"Not Answered"},{"$f":"'Reporting Info'!C174","v":0},{"$f":"'Reporting Info'!H174","v":0},{"$f":"'Reporting Info'!K174","v":0},{"$f":"'Reporting Info'!O174","v":0},"/",{"$f":"'Reporting Info'!Q174","v":0}]